Workbook

Sheet Order_Entry
B14: Information
B16: Project:
B17: Date: | C17: =TODAY() -> 2015-09-28
B20: Valve Configuration
B22: Body Style | C22: Inlet Connection | D22: Outlet Connection | E22: Valve Application | F22: Monitoring Switch
B23: Select... | E23: Select...
B26: Operating Conditions
B28: Static Inlet Pressure: | F28: [psig]
B29: Residual Inlet Pressure: | F29: [psig]
B30: Flow Rate: | F30: [gpm]
B31: Desired Residual Outlet Pressure: | F31: [psig]
B32: Location Tag:
B35: Valve Outputs
B37: Valve Type | C37: Max. Inlet Rating [psig] | D37: Max. Flow Rating [gpm] | E37: Outlet Static Pressure [psig] | F37: Outlet Residual Pressure [psig] | G37: Difference to Desired Residual Out. [psig] | H37: Status | I37: Quantity | K37: Static Status | L37: Res. Status | M37: Flow Status
B38: =IFERROR(INDEX(Database!C$10:C$31, SMALL(IF(Database!$B$10:$B$31=Order_Entry!$B$23,ROW(Database!C$10:C$31)-ROW(Database!C$10)+1),ROWS(Database!C$10:'Database'!C10))),"") ->  | C38: =IFERROR(INDEX(Database!D$10:D$31, SMALL(IF(Database!$B$10:$B$31=Order_Entry!$B$23,ROW(Database!D$10:D$31)-ROW(Database!D$10)+1),ROWS(Database!D$10:'Database'!D10))),"") ->  | D38: =IFERROR(INDEX(Database!E$10:E$31, SMALL(IF(Database!$B$10:$B$31=Order_Entry!$B$23,ROW(Database!E$10:E$31)-ROW(Database!E$10)+1),ROWS(Database!E$10:'Database'!E10))),"") ->  | E38: =IFERROR(INDEX(Database!K$10:K$31, SMALL(IF(Database!$B$10:$B$31=Order_Entry!$B$23,ROW(Database!K$10:K$31)-ROW(Database!K$10)+1),ROWS(Database!K$10:'Database'!K10))),"") ->  | F38: =IFERROR(INDEX(Database!L$10:L$31, SMALL(IF(Database!$B$10:$B$31=Order_Entry!$B$23,ROW(Database!L$10:L$31)-ROW(Database!L$10)+1),ROWS(Database!L$10:'Database'!L10))),"") ->  | G38: =IFERROR(INDEX(Database!M$10:M$31, SMALL(IF(Database!$B$10:$B$31=Order_Entry!$B$23,ROW(Database!M$10:M$31)-ROW(Database!M$10)+1),ROWS(Database!M$10:'Database'!M10))),"") ->  | H38: =IFERROR(INDEX(Database!N$10:N$31, SMALL(IF(Database!$B$10:$B$31=Order_Entry!$B$23,ROW(Database!N$10:N$31)-ROW(Database!N$10)+1),ROWS(Database!N$10:'Database'!N10))),"") ->  | K38: =IFERROR(INDEX(Database!H$10:H$31, SMALL(IF(Database!$B$10:$B$31=Order_Entry!$B$23,ROW(Database!H$10:H$31)-ROW(Database!H$10)+1),ROWS(Database!H$10:'Database'!H10))),"") ->  | L38: =IFERROR(INDEX(Database!I$10:I$31, SMALL(IF(Database!$B$10:$B$31=Order_Entry!$B$23,ROW(Database!I$10:I$31)-ROW(Database!I$10)+1),ROWS(Database!I$10:'Database'!I10))),"") ->  | M38: =IFERROR(INDEX(Database!J$10:J$31, SMALL(IF(Database!$B$10:$B$31=Order_Entry!$B$23,ROW(Database!J$10:J$31)-ROW(Database!J$10)+1),ROWS(Database!J$10:'Database'!J10))),"") -> 
B39: =IFERROR(INDEX(Database!C$10:C$31, SMALL(IF(Database!$B$10:$B$31=Order_Entry!$B$23,ROW(Database!C$10:C$31)-ROW(Database!C$10)+1),ROWS(Database!C$10:'Database'!C11))),"") ->  | C39: =IFERROR(INDEX(Database!D$10:D$31, SMALL(IF(Database!$B$10:$B$31=Order_Entry!$B$23,ROW(Database!D$10:D$31)-ROW(Database!D$10)+1),ROWS(Database!D$10:'Database'!D11))),"") ->  | D39: =IFERROR(INDEX(Database!E$10:E$31, SMALL(IF(Database!$B$10:$B$31=Order_Entry!$B$23,ROW(Database!E$10:E$31)-ROW(Database!E$10)+1),ROWS(Database!E$10:'Database'!E11))),"") ->  | E39: =IFERROR(INDEX(Database!K$10:K$31, SMALL(IF(Database!$B$10:$B$31=Order_Entry!$B$23,ROW(Database!K$10:K$31)-ROW(Database!K$10)+1),ROWS(Database!K$10:'Database'!K11))),"") ->  | F39: =IFERROR(INDEX(Database!L$10:L$31, SMALL(IF(Database!$B$10:$B$31=Order_Entry!$B$23,ROW(Database!L$10:L$31)-ROW(Database!L$10)+1),ROWS(Database!L$10:'Database'!L11))),"") ->  | G39: =IFERROR(INDEX(Database!M$10:M$31, SMALL(IF(Database!$B$10:$B$31=Order_Entry!$B$23,ROW(Database!M$10:M$31)-ROW(Database!M$10)+1),ROWS(Database!M$10:'Database'!M11))),"") ->  | H39: =IFERROR(INDEX(Database!N$10:N$31, SMALL(IF(Database!$B$10:$B$31=Order_Entry!$B$23,ROW(Database!N$10:N$31)-ROW(Database!N$10)+1),ROWS(Database!N$10:'Database'!N11))),"") ->  | K39: =IFERROR(INDEX(Database!H$10:H$31, SMALL(IF(Database!$B$10:$B$31=Order_Entry!$B$23,ROW(Database!H$10:H$31)-ROW(Database!H$10)+1),ROWS(Database!H$10:'Database'!H11))),"") ->  | L39: =IFERROR(INDEX(Database!I$10:I$31, SMALL(IF(Database!$B$10:$B$31=Order_Entry!$B$23,ROW(Database!I$10:I$31)-ROW(Database!I$10)+1),ROWS(Database!I$10:'Database'!I11))),"") ->  | M39: =IFERROR(INDEX(Database!J$10:J$31, SMALL(IF(Database!$B$10:$B$31=Order_Entry!$B$23,ROW(Database!J$10:J$31)-ROW(Database!J$10)+1),ROWS(Database!J$10:'Database'!J11))),"") -> 
B40: =IFERROR(INDEX(Database!C$10:C$31, SMALL(IF(Database!$B$10:$B$31=Order_Entry!$B$23,ROW(Database!C$10:C$31)-ROW(Database!C$10)+1),ROWS(Database!C$10:'Database'!C12))),"") ->  | C40: =IFERROR(INDEX(Database!D$10:D$31, SMALL(IF(Database!$B$10:$B$31=Order_Entry!$B$23,ROW(Database!D$10:D$31)-ROW(Database!D$10)+1),ROWS(Database!D$10:'Database'!D12))),"") ->  | D40: =IFERROR(INDEX(Database!E$10:E$31, SMALL(IF(Database!$B$10:$B$31=Order_Entry!$B$23,ROW(Database!E$10:E$31)-ROW(Database!E$10)+1),ROWS(Database!E$10:'Database'!E12))),"") ->  | E40: =IFERROR(INDEX(Database!K$10:K$31, SMALL(IF(Database!$B$10:$B$31=Order_Entry!$B$23,ROW(Database!K$10:K$31)-ROW(Database!K$10)+1),ROWS(Database!K$10:'Database'!K12))),"") ->  | F40: =IFERROR(INDEX(Database!L$10:L$31, SMALL(IF(Database!$B$10:$B$31=Order_Entry!$B$23,ROW(Database!L$10:L$31)-ROW(Database!L$10)+1),ROWS(Database!L$10:'Database'!L12))),"") ->  | G40: =IFERROR(INDEX(Database!M$10:M$31, SMALL(IF(Database!$B$10:$B$31=Order_Entry!$B$23,ROW(Database!M$10:M$31)-ROW(Database!M$10)+1),ROWS(Database!M$10:'Database'!M12))),"") ->  | H40: =IFERROR(INDEX(Database!N$10:N$31, SMALL(IF(Database!$B$10:$B$31=Order_Entry!$B$23,ROW(Database!N$10:N$31)-ROW(Database!N$10)+1),ROWS(Database!N$10:'Database'!N12))),"") ->  | K40: =IFERROR(INDEX(Database!H$10:H$31, SMALL(IF(Database!$B$10:$B$31=Order_Entry!$B$23,ROW(Database!H$10:H$31)-ROW(Database!H$10)+1),ROWS(Database!H$10:'Database'!H12))),"") ->  | L40: =IFERROR(INDEX(Database!I$10:I$31, SMALL(IF(Database!$B$10:$B$31=Order_Entry!$B$23,ROW(Database!I$10:I$31)-ROW(Database!I$10)+1),ROWS(Database!I$10:'Database'!I12))),"") ->  | M40: =IFERROR(INDEX(Database!J$10:J$31, SMALL(IF(Database!$B$10:$B$31=Order_Entry!$B$23,ROW(Database!J$10:J$31)-ROW(Database!J$10)+1),ROWS(Database!J$10:'Database'!J12))),"") -> 
B41: =IFERROR(INDEX(Database!C$10:C$31, SMALL(IF(Database!$B$10:$B$31=Order_Entry!$B$23,ROW(Database!C$10:C$31)-ROW(Database!C$10)+1),ROWS(Database!C$10:'Database'!C13))),"") ->  | C41: =IFERROR(INDEX(Database!D$10:D$31, SMALL(IF(Database!$B$10:$B$31=Order_Entry!$B$23,ROW(Database!D$10:D$31)-ROW(Database!D$10)+1),ROWS(Database!D$10:'Database'!D13))),"") ->  | D41: =IFERROR(INDEX(Database!E$10:E$31, SMALL(IF(Database!$B$10:$B$31=Order_Entry!$B$23,ROW(Database!E$10:E$31)-ROW(Database!E$10)+1),ROWS(Database!E$10:'Database'!E13))),"") ->  | E41: =IFERROR(INDEX(Database!K$10:K$31, SMALL(IF(Database!$B$10:$B$31=Order_Entry!$B$23,ROW(Database!K$10:K$31)-ROW(Database!K$10)+1),ROWS(Database!K$10:'Database'!K13))),"") ->  | F41: =IFERROR(INDEX(Database!L$10:L$31, SMALL(IF(Database!$B$10:$B$31=Order_Entry!$B$23,ROW(Database!L$10:L$31)-ROW(Database!L$10)+1),ROWS(Database!L$10:'Database'!L13))),"") ->  | G41: =IFERROR(INDEX(Database!M$10:M$31, SMALL(IF(Database!$B$10:$B$31=Order_Entry!$B$23,ROW(Database!M$10:M$31)-ROW(Database!M$10)+1),ROWS(Database!M$10:'Database'!M13))),"") ->  | H41: =IFERROR(INDEX(Database!N$10:N$31, SMALL(IF(Database!$B$10:$B$31=Order_Entry!$B$23,ROW(Database!N$10:N$31)-ROW(Database!N$10)+1),ROWS(Database!N$10:'Database'!N13))),"") ->  | K41: =IFERROR(INDEX(Database!H$10:H$31, SMALL(IF(Database!$B$10:$B$31=Order_Entry!$B$23,ROW(Database!H$10:H$31)-ROW(Database!H$10)+1),ROWS(Database!H$10:'Database'!H13))),"") ->  | L41: =IFERROR(INDEX(Database!I$10:I$31, SMALL(IF(Database!$B$10:$B$31=Order_Entry!$B$23,ROW(Database!I$10:I$31)-ROW(Database!I$10)+1),ROWS(Database!I$10:'Database'!I13))),"") ->  | M41: =IFERROR(INDEX(Database!J$10:J$31, SMALL(IF(Database!$B$10:$B$31=Order_Entry!$B$23,ROW(Database!J$10:J$31)-ROW(Database!J$10)+1),ROWS(Database!J$10:'Database'!J13))),"") -> 
B42: =IFERROR(INDEX(Database!C$10:C$31, SMALL(IF(Database!$B$10:$B$31=Order_Entry!$B$23,ROW(Database!C$10:C$31)-ROW(Database!C$10)+1),ROWS(Database!C$10:'Database'!C14))),"") ->  | C42: =IFERROR(INDEX(Database!D$10:D$31, SMALL(IF(Database!$B$10:$B$31=Order_Entry!$B$23,ROW(Database!D$10:D$31)-ROW(Database!D$10)+1),ROWS(Database!D$10:'Database'!D14))),"") ->  | D42: =IFERROR(INDEX(Database!E$10:E$31, SMALL(IF(Database!$B$10:$B$31=Order_Entry!$B$23,ROW(Database!E$10:E$31)-ROW(Database!E$10)+1),ROWS(Database!E$10:'Database'!E14))),"") ->  | E42: =IFERROR(INDEX(Database!K$10:K$31, SMALL(IF(Database!$B$10:$B$31=Order_Entry!$B$23,ROW(Database!K$10:K$31)-ROW(Database!K$10)+1),ROWS(Database!K$10:'Database'!K14))),"") ->  | F42: =IFERROR(INDEX(Database!L$10:L$31, SMALL(IF(Database!$B$10:$B$31=Order_Entry!$B$23,ROW(Database!L$10:L$31)-ROW(Database!L$10)+1),ROWS(Database!L$10:'Database'!L14))),"") ->  | G42: =IFERROR(INDEX(Database!M$10:M$31, SMALL(IF(Database!$B$10:$B$31=Order_Entry!$B$23,ROW(Database!M$10:M$31)-ROW(Database!M$10)+1),ROWS(Database!M$10:'Database'!M14))),"") ->  | H42: =IFERROR(INDEX(Database!N$10:N$31, SMALL(IF(Database!$B$10:$B$31=Order_Entry!$B$23,ROW(Database!N$10:N$31)-ROW(Database!N$10)+1),ROWS(Database!N$10:'Database'!N14))),"") ->  | K42: =IFERROR(INDEX(Database!H$10:H$31, SMALL(IF(Database!$B$10:$B$31=Order_Entry!$B$23,ROW(Database!H$10:H$31)-ROW(Database!H$10)+1),ROWS(Database!H$10:'Database'!H15))),"") ->  | L42: =IFERROR(INDEX(Database!I$10:I$31, SMALL(IF(Database!$B$10:$B$31=Order_Entry!$B$23,ROW(Database!I$10:I$31)-ROW(Database!I$10)+1),ROWS(Database!I$10:'Database'!I15))),"") ->  | M42: =IFERROR(INDEX(Database!J$10:J$31, SMALL(IF(Database!$B$10:$B$31=Order_Entry!$B$23,ROW(Database!J$10:J$31)-ROW(Database!J$10)+1),ROWS(Database!J$10:'Database'!J15))),"") -> 
B43: =IFERROR(INDEX(Database!C$10:C$31, SMALL(IF(Database!$B$10:$B$31=Order_Entry!$B$23,ROW(Database!C$10:C$31)-ROW(Database!C$10)+1),ROWS(Database!C$10:'Database'!C15))),"") ->  | C43: =IFERROR(INDEX(Database!D$10:D$31, SMALL(IF(Database!$B$10:$B$31=Order_Entry!$B$23,ROW(Database!D$10:D$31)-ROW(Database!D$10)+1),ROWS(Database!D$10:'Database'!D15))),"") ->  | D43: =IFERROR(INDEX(Database!E$10:E$31, SMALL(IF(Database!$B$10:$B$31=Order_Entry!$B$23,ROW(Database!E$10:E$31)-ROW(Database!E$10)+1),ROWS(Database!E$10:'Database'!E15))),"") ->  | E43: =IFERROR(INDEX(Database!K$10:K$31, SMALL(IF(Database!$B$10:$B$31=Order_Entry!$B$23,ROW(Database!K$10:K$31)-ROW(Database!K$10)+1),ROWS(Database!K$10:'Database'!K15))),"") ->  | F43: =IFERROR(INDEX(Database!L$10:L$31, SMALL(IF(Database!$B$10:$B$31=Order_Entry!$B$23,ROW(Database!L$10:L$31)-ROW(Database!L$10)+1),ROWS(Database!L$10:'Database'!L15))),"") ->  | G43: =IFERROR(INDEX(Database!M$10:M$31, SMALL(IF(Database!$B$10:$B$31=Order_Entry!$B$23,ROW(Database!M$10:M$31)-ROW(Database!M$10)+1),ROWS(Database!M$10:'Database'!M15))),"") ->  | H43: =IFERROR(INDEX(Database!N$10:N$31, SMALL(IF(Database!$B$10:$B$31=Order_Entry!$B$23,ROW(Database!N$10:N$31)-ROW(Database!N$10)+1),ROWS(Database!N$10:'Database'!N15))),"") ->  | K43: =IFERROR(INDEX(Database!H$10:H$31, SMALL(IF(Database!$B$10:$B$31=Order_Entry!$B$23,ROW(Database!H$10:H$31)-ROW(Database!H$10)+1),ROWS(Database!H$10:'Database'!H16))),"") ->  | L43: =IFERROR(INDEX(Database!I$10:I$31, SMALL(IF(Database!$B$10:$B$31=Order_Entry!$B$23,ROW(Database!I$10:I$31)-ROW(Database!I$10)+1),ROWS(Database!I$10:'Database'!I16))),"") ->  | M43: =IFERROR(INDEX(Database!J$10:J$31, SMALL(IF(Database!$B$10:$B$31=Order_Entry!$B$23,ROW(Database!J$10:J$31)-ROW(Database!J$10)+1),ROWS(Database!J$10:'Database'!J16))),"") -> 
B44: =IFERROR(INDEX(Database!C$10:C$31, SMALL(IF(Database!$B$10:$B$31=Order_Entry!$B$23,ROW(Database!C$10:C$31)-ROW(Database!C$10)+1),ROWS(Database!C$10:'Database'!C16))),"") ->  | C44: =IFERROR(INDEX(Database!D$10:D$31, SMALL(IF(Database!$B$10:$B$31=Order_Entry!$B$23,ROW(Database!D$10:D$31)-ROW(Database!D$10)+1),ROWS(Database!D$10:'Database'!D16))),"") ->  | D44: =IFERROR(INDEX(Database!E$10:E$31, SMALL(IF(Database!$B$10:$B$31=Order_Entry!$B$23,ROW(Database!E$10:E$31)-ROW(Database!E$10)+1),ROWS(Database!E$10:'Database'!E16))),"") ->  | E44: =IFERROR(INDEX(Database!K$10:K$31, SMALL(IF(Database!$B$10:$B$31=Order_Entry!$B$23,ROW(Database!K$10:K$31)-ROW(Database!K$10)+1),ROWS(Database!K$10:'Database'!K16))),"") ->  | F44: =IFERROR(INDEX(Database!L$10:L$31, SMALL(IF(Database!$B$10:$B$31=Order_Entry!$B$23,ROW(Database!L$10:L$31)-ROW(Database!L$10)+1),ROWS(Database!L$10:'Database'!L16))),"") ->  | G44: =IFERROR(INDEX(Database!M$10:M$31, SMALL(IF(Database!$B$10:$B$31=Order_Entry!$B$23,ROW(Database!M$10:M$31)-ROW(Database!M$10)+1),ROWS(Database!M$10:'Database'!M16))),"") ->  | H44: =IFERROR(INDEX(Database!N$10:N$31, SMALL(IF(Database!$B$10:$B$31=Order_Entry!$B$23,ROW(Database!N$10:N$31)-ROW(Database!N$10)+1),ROWS(Database!N$10:'Database'!N16))),"") ->  | K44: =IFERROR(INDEX(Database!H$10:H$31, SMALL(IF(Database!$B$10:$B$31=Order_Entry!$B$23,ROW(Database!H$10:H$31)-ROW(Database!H$10)+1),ROWS(Database!H$10:'Database'!H17))),"") ->  | L44: =IFERROR(INDEX(Database!I$10:I$31, SMALL(IF(Database!$B$10:$B$31=Order_Entry!$B$23,ROW(Database!I$10:I$31)-ROW(Database!I$10)+1),ROWS(Database!I$10:'Database'!I17))),"") ->  | M44: =IFERROR(INDEX(Database!J$10:J$31, SMALL(IF(Database!$B$10:$B$31=Order_Entry!$B$23,ROW(Database!J$10:J$31)-ROW(Database!J$10)+1),ROWS(Database!J$10:'Database'!J17))),"") -> 
B45: =IFERROR(INDEX(Database!C$10:C$31, SMALL(IF(Database!$B$10:$B$31=Order_Entry!$B$23,ROW(Database!C$10:C$31)-ROW(Database!C$10)+1),ROWS(Database!C$10:'Database'!C17))),"") ->  | C45: =IFERROR(INDEX(Database!D$10:D$31, SMALL(IF(Database!$B$10:$B$31=Order_Entry!$B$23,ROW(Database!D$10:D$31)-ROW(Database!D$10)+1),ROWS(Database!D$10:'Database'!D17))),"") ->  | D45: =IFERROR(INDEX(Database!E$10:E$31, SMALL(IF(Database!$B$10:$B$31=Order_Entry!$B$23,ROW(Database!E$10:E$31)-ROW(Database!E$10)+1),ROWS(Database!E$10:'Database'!E17))),"") ->  | E45: =IFERROR(INDEX(Database!K$10:K$31, SMALL(IF(Database!$B$10:$B$31=Order_Entry!$B$23,ROW(Database!K$10:K$31)-ROW(Database!K$10)+1),ROWS(Database!K$10:'Database'!K17))),"") ->  | F45: =IFERROR(INDEX(Database!L$10:L$31, SMALL(IF(Database!$B$10:$B$31=Order_Entry!$B$23,ROW(Database!L$10:L$31)-ROW(Database!L$10)+1),ROWS(Database!L$10:'Database'!L17))),"") ->  | G45: =IFERROR(INDEX(Database!M$10:M$31, SMALL(IF(Database!$B$10:$B$31=Order_Entry!$B$23,ROW(Database!M$10:M$31)-ROW(Database!M$10)+1),ROWS(Database!M$10:'Database'!M17))),"") ->  | H45: =IFERROR(INDEX(Database!N$10:N$31, SMALL(IF(Database!$B$10:$B$31=Order_Entry!$B$23,ROW(Database!N$10:N$31)-ROW(Database!N$10)+1),ROWS(Database!N$10:'Database'!N17))),"") ->  | K45: =IFERROR(INDEX(Database!H$10:H$31, SMALL(IF(Database!$B$10:$B$31=Order_Entry!$B$23,ROW(Database!H$10:H$31)-ROW(Database!H$10)+1),ROWS(Database!H$10:'Database'!H18))),"") ->  | L45: =IFERROR(INDEX(Database!I$10:I$31, SMALL(IF(Database!$B$10:$B$31=Order_Entry!$B$23,ROW(Database!I$10:I$31)-ROW(Database!I$10)+1),ROWS(Database!I$10:'Database'!I18))),"") ->  | M45: =IFERROR(INDEX(Database!J$10:J$31, SMALL(IF(Database!$B$10:$B$31=Order_Entry!$B$23,ROW(Database!J$10:J$31)-ROW(Database!J$10)+1),ROWS(Database!J$10:'Database'!J18))),"") -> 

Sheet Order_Sheet
A1: Project Name: | C1: =IF(Order_Entry!C16="","",Order_Entry!C16) ->  | K1: Date: | L1: =Order_Entry!$C$17 -> 2015-09-28
A2: Order Quantity | B2: Body Style | C2: Type | D2: Inlet Connection | E2: Outlet Connection | F2: Monitoring Switch | G2: Location Tag | I2: Static Inlet [PSI] | J2: Residual Inlet [PSI] | K2: Flow Rate [GPM] | L2: Desired Outlet Residual [PSI] | N2: Static Outlet [PSI] | O2: Residual Outlet [PSI]

Sheet Database (hidden)
A1: Variables
A2: Static Inlet Pressure [psig]: | B2: =Order_Entry!$D$28 -> 0 | D2: Minimum Flow Rate [GPM]: | E2: =VLOOKUP(Order_Entry!E23,D36:I37,6) -> 
A3: Residual Inlet Pressure [psig]: | B3: =Order_Entry!$D$29 -> 0 | D3: Maximum Flow Rate [GPM]: | E3: =VLOOKUP(Main,B36:H38,7) -> 500
A4: Flow Rate [GPM]: | B4: =Order_Entry!$D$30 -> 0 | D4: Minimum Inlet Pressure [psig]: | E4: 50
A5: Desired Residual Outlet Pressure [psig]: | B5: =Order_Entry!$D$31 -> 0
A8: Calculation Tables
B9: Configuration | C9: Valve Type | D9: Max Inlet Rating | E9: Max Flow Rating | F9: Calculated Static Out.Pressure | G9: Calculated Res. Out. Pressure | H9: Static Out. Status | I9: Res. Out Status | J9: Flow Status | K9: Static Out. Display | L9: Res. Out. Display | M9: Difference to Desired Residual Outlet Pressure | N9: Status
B10: 1.5" Angle | C10: Type 1 | D10: ='1.5_Angle'!$A$9 -> 210 | E10: ='1.5_Angle'!$AI$13 -> 250 | F10: ='1.5_Angle'!$AG$13 ->  | G10: ='1.5_Angle'!$AH$13 ->  | H10: =IF($B$2<$E$4,$B$51, IF($B$2>$D10, $B$50, $B$47)) -> Err2 | I10: =IF($B$3<$E$4,$B$53,IF($B$3>$D10,$B$52,$B$48)) -> Err4 | J10: =IF($B$4<$E$2,$B$55,IF($B$4>$E10,$B$54,$B$49)) ->  | K10: =IF(AND($H10="SC",$I10="RC",$J10="FC"), $F10, "N/A") ->  | L10: =IF(AND($H10="SC",$I10="RC",$J10="FC"), $G10, "N/A") ->  | M10: =IF(AND(H10="SC",I10="RC",J10="FC",$B$5>0),(ABS($B$5-$L10)),"-") ->  | N10: =IF(AND($H10="SC",$I10="RC",$J10="FC"), "Available", "Unavailable") -> 
B11: 1.5" Angle | C11: Type 2 | D11: ='1.5_Angle'!$A$17 -> 250 | E11: ='1.5_Angle'!$AI$14 -> 250 | F11: ='1.5_Angle'!$AG$14 ->  | G11: ='1.5_Angle'!$AH$14 ->  | H11: =IF($B$2<$E$4,$B$51, IF($B$2>$D11, $B$50, $B$47)) -> Err2 | I11: =IF($B$3<$E$4,$B$53,IF($B$3>$D11,$B$52,$B$48)) -> Err4
B12: 1.5" Angle | C12: Type 3 | D12: ='1.5_Angle'!$A$26 -> 260 | E12: ='1.5_Angle'!$AI$15 -> 250 | F12: ='1.5_Angle'!$AG$15 ->  | G12: ='1.5_Angle'!$AH$15 ->  | H12: =IF($B$2<$E$4,$B$51, IF($B$2>$D12, $B$50, $B$47)) -> Err2 | I12: Err4
B13: 1.5" Angle | C13: Type 4A | D13: ='1.5_Angle'!$A$44 -> 260 | E13: ='1.5_Angle'!$AI$17 -> 250 | F13: ='1.5_Angle'!$AG$17 ->  | G13: ='1.5_Angle'!$AH$17 ->  | H13: =IF($B$2<E7,$B$51, IF($B$2>Table3[[#This Row],[Max Inlet Rating]], $B$50, $B$47)) -> SC | I13: Err4
B14: 1.5" Angle | C14: Type 4B | D14: ='1.5_Angle'!$A$35 -> 275 | E14: ='1.5_Angle'!$AI$16 -> 200 | F14: ='1.5_Angle'!$AG$16 ->  | G14: ='1.5_Angle'!$AH$16 ->  | H14: =IF($B$2<$E$4,$B$51, IF($B$2>$D14, $B$50, $B$47)) -> Err2 | I14: Err4
B15: 1.5" Angle | C15: Type 5 | D15: ='1.5_Angle'!$A$54 -> 300 | E15: ='1.5_Angle'!$AI$18 -> 250 | F15: ='1.5_Angle'!$AG$18 ->  | G15: ='1.5_Angle'!$AH$18 ->  | H15: Err2 | I15: Err4
B16: 2.5" Angle | C16: Type 0 | D16: ='2.5_Angle'!$A$9 -> 210 | E16: ='2.5_Angle'!$AK$29 -> 500 | F16: ='2.5_Angle'!$AI$29 ->  | G16: ='2.5_Angle'!$AJ$29 ->  | H16: Err2 | I16: Err4
B17: 2.5" Angle | C17: Type 1 | D17: ='2.5_Angle'!$A$17 -> 220 | E17: ='2.5_Angle'!$AK$30 -> 500 | F17: ='2.5_Angle'!$AI$30 ->  | G17: ='2.5_Angle'!$AJ$30 ->  | H17: Err2 | I17: Err4
B18: 2.5" Angle | C18: Type 2 | D18: ='2.5_Angle'!$A$25 -> 230 | E18: ='2.5_Angle'!$AK$31 -> 500 | F18: ='2.5_Angle'!$AI$31 ->  | G18: ='2.5_Angle'!$AJ$31 ->  | H18: Err2 | I18: Err4
B19: 2.5" Angle | C19: Type 3 | D19: ='2.5_Angle'!$A$34 -> 265 | E19: ='2.5_Angle'!$AK$32 -> 500 | F19: ='2.5_Angle'!$AI$32 ->  | G19: ='2.5_Angle'!$AJ$32 ->  | H19: Err2 | I19: Err4
B20: 2.5" Angle | C20: Type 4 | D20: ='2.5_Angle'!$A$43 -> 300 | E20: ='2.5_Angle'!$AK$33 -> 500 | F20: ='2.5_Angle'!$AI$33 ->  | G20: ='2.5_Angle'!$AJ$33 ->  | H20: Err2 | I20: Err4
B21: 2.5" Angle | C21: Type 5 | D21: ='2.5_Angle'!$A$53 -> 320 | E21: ='2.5_Angle'!$AK$34 -> 500 | F21: ='2.5_Angle'!$AI$34 ->  | G21: ='2.5_Angle'!$AJ$34 ->  | H21: Err2 | I21: Err4
B22: 2.5" Angle | C22: Type 6 | D22: ='2.5_Angle'!$A$64 -> 360 | E22: ='2.5_Angle'!$AK$35 -> 500 | F22: ='2.5_Angle'!$AI$35 ->  | G22: ='2.5_Angle'!$AJ$35 ->  | H22: Err2 | I22: Err4
B23: 2.5" Angle | C23: Type 7 | D23: ='2.5_Angle'!$A$75 -> 400 | E23: ='2.5_Angle'!$AK$36 -> 500 | F23: ='2.5_Angle'!$AI$36 ->  | G23: ='2.5_Angle'!$AJ$36 ->  | H23: Err2 | I23: Err4
B24: 2.5" Inline | C24: Type 0 | D24: ='2.5_Straight'!$A$9 -> 210 | E24: ='2.5_Straight'!$AK$29 -> 500 | F24: ='2.5_Straight'!$AI$29 ->  | G24: ='2.5_Straight'!$AJ$29 ->  | H24: Err2 | I24: Err4
B25: 2.5" Inline | C25: Type 1 | D25: ='2.5_Straight'!$A$17 -> 220 | E25: ='2.5_Straight'!$AK$30 -> 500 | F25: ='2.5_Straight'!$AI$30 ->  | G25: ='2.5_Straight'!$AJ$30 ->  | H25: Err2 | I25: Err4
B26: 2.5" Inline | C26: Type 2 | D26: ='2.5_Straight'!$A$25 -> 230 | E26: ='2.5_Straight'!$AK$31 -> 500 | F26: ='2.5_Straight'!$AI$31 ->  | G26: ='2.5_Straight'!$AJ$31 ->  | H26: Err2 | I26: Err4
B27: 2.5" Inline | C27: Type 3 | D27: ='2.5_Straight'!$A$34 -> 265 | E27: ='2.5_Straight'!$AK$32 -> 500 | F27: ='2.5_Straight'!$AI$32 ->  | G27: ='2.5_Straight'!$AJ$32 ->  | H27: Err2 | I27: Err4
B28: 2.5" Inline | C28: Type 4 | D28: ='2.5_Straight'!$A$43 -> 300 | E28: ='2.5_Straight'!$AK$33 -> 500 | F28: ='2.5_Straight'!$AI$33 ->  | G28: ='2.5_Straight'!$AJ$33 ->  | H28: Err2 | I28: =IF($B$3<$E$4,$B$53,IF($B$3>$D28,$B$52,$B$48)) -> Err4 | L28: =IF(AND($H28="SC",$I28="RC",$J28="FC"), $G28, "N/A") -> 
B29: 2.5" Inline | C29: Type 5 | D29: ='2.5_Straight'!$A$53 -> 320 | E29: ='2.5_Straight'!$AK$34 -> 500 | F29: ='2.5_Straight'!$AI$34 ->  | G29: ='2.5_Straight'!$AJ$34 ->  | H29: Err2 | I29: =IF($B$3<$E$4,$B$53,IF($B$3>$D29,$B$52,$B$48)) -> Err4 | L29: =IF(AND($H29="SC",$I29="RC",$J29="FC"), $G29, "N/A") -> 
B30: 2.5" Inline | C30: Type 6 | D30: ='2.5_Straight'!$A$64 -> 360 | E30: ='2.5_Straight'!$AK$35 -> 500 | F30: ='2.5_Straight'!$AI$35 ->  | G30: ='2.5_Straight'!$AJ$35 ->  | H30: Err2 | I30: Err4 | L30: =IF(AND($H30="SC",$I30="RC",$J30="FC"), $G30, "N/A") -> 
B31: 2.5" Inline | C31: Type 7 | D31: ='2.5_Straight'!$A$75 -> 400 | E31: ='2.5_Straight'!$AK$36 -> 500 | F31: ='2.5_Straight'!AI$36 ->  | G31: ='2.5_Straight'!$AJ$36 ->  | H31: Err2 | I31: Err4
A33: Drop-Down Options
B35: Configuration | C35: Reference | D35: Application | E35: Reference | F35: Sprinkler | G35: Standpipe | H35: Max. Flow Rate | I35: Min. Flow Rate
B36: 1.5" Angle | C36: ValveA | D36: Sprinkler System | E36: Sprinkler | F36: None | G36: None | H36: 250 | I36: 50
B37: 2.5" Angle | C37: ValveB | D37: Standpipe System | E37: Standpipe | F37: N.C. (Recom'd) | G37: N.O. (Recom'd) | H37: 500 | I37: 65
B38: 2.5" Inline | C38: ValveC | F38: N.O. | G38: N.C. | H38: 500
B40: ValveA_Inlet | C40: ValveA_Outlet | D40: ValveB_Inlet | E40: ValveB_Outlet | F40: ValveC_Inlet | G40: ValveC_Outlet
B41: Female NPT | C41: Female NPT | D41: Female NPT | E41: Female NPT | F41: Female NPT | G41: Female NPT
B42: Grooved Pipe | C42: Grooved Pipe | D42: Grooved Pipe | E42: Grooved Pipe | F42: Grooved Pipe | G42: Grooved Pipe
C43: Male Hose | E43: Regional Hose
A44: Error Messages
B46: Code | C46: Message
B47: SC | C47: Static Clear
B48: RC | C48: Res. Clear
B49: FC | C49: Flow Clear
B50: Err1 | C50: Static inlet too high
B51: Err2 | C51: Static inlet too low
B52: Err3 | C52: Residual inlet too high
B53: Err4 | C53: Residual inlet too low
B54: Err5 | C54: Flow rate too high
B55: Err6 | C55: Flow rate too low

Sheet 2.5_Angle (hidden)
A1: 2.5" Angle Body - Outlet Pressures @ Flow Rate
A2: Data compiled from Project No. 12CA5765 - EX5549. Published 13-Nov-2013. Values with blank data indicate pumps were unable to meet required specifications.
A3: Type 0 | B3: Outlet Pressures: Inlet Pressure [psig] vs. Flow Rate [GPM] | O3: Type 0 | P3: Inlet vs. Outlet Pressure Over Flow Range | W3: Type 0
A4: Inlet Pressure (psig) | B4: 0 | C4: 50 | D4: 75 | E4: 100 | F4: 150 | G4: 200 | H4: 250 | I4: 300 | J4: 350 | K4: 400 | L4: 450 | M4: 500 | Q4: Static | R4: 50-200 [GPM] | S4: 200-300 [GPM] | T4: 300-400 [GPM] | U4: 400-500 [GPM] | Y4: =CONCATENATE("Outlet Residual @ " &AJ$8& " GPM") -> Outlet Residual @ 0 GPM | Z4: =CONCATENATE("Outlet Residual @ " &AJ$9& " GPM") -> Outlet Residual @ 0 GPM | AC4: Const. PRI Interpolated @ Var. Flow | AH4: Variables:
A5: 50 | B5: 41 | C5: 38 | D5: 40 | E5: 36 | F5: 36 | G5: 35 | H5: 37 | I5: 34 | J5: 30 | K5: 28 | L5: 26 | O5: Inlet Pressure (psig) | P5: =A5 -> 50 | Q5: =B5 -> 41 | R5: =AVERAGE(C5:G5) -> 37 | S5: =AVERAGE(G5:I5) -> 35.33333333 | T5: =AVERAGE(I5:K5) -> 30.66666667 | U5: =AVERAGE(K5:M5) -> 27 | W5: Inlet Pressure (psig) | X5: =A5 -> 50 | Y5: =HLOOKUP($AJ$8,$B$4:$M$9,2) -> 41 | Z5: =HLOOKUP($AJ$9,$B$4:$M$9,2) -> 41 | AA5: PRI1: | AB5: =LARGE(A5:A9,COUNTIF(A5:A9,">" &AJ6)+1) ->  | AC5: =VLOOKUP(AB5,X5:Z9,2) ->  | AD5: =VLOOKUP(AB5,X5:Z9,3) ->  | AE5: PRO1: | AF5: =IF(AJ8=AJ9, AC5, FORECAST(AJ7,$AC$5:$AD$5,$AJ$8:$AJ$9)) ->  | AH5: Static Inlet Pressure | AI5: PSI: | AJ5: =Database!$B$2 -> 0
A6: 100 | B6: 80 | C6: 79 | D6: 78 | E6: 78 | F6: 77 | G6: 76 | H6: 75 | I6: 74 | J6: 72 | K6: 68 | L6: 65 | M6: 64 | P6: =A6 -> 100 | Q6: =B6 -> 80 | R6: =AVERAGE(C6:G6) -> 77.6 | S6: =AVERAGE(G6:I6) -> 75 | T6: =AVERAGE(I6:K6) -> 71.33333333 | U6: =AVERAGE(K6:M6) -> 65.66666667 | X6: =A6 -> 100 | Y6: =HLOOKUP($AJ$8,$B$4:$M$9,3) -> 80 | Z6: =HLOOKUP($AJ$9,$B$4:$M$9,3) -> 80 | AA6: PRI2: | AB6: =SMALL(A5:A9,COUNTIF(A5:A9,"<"&AJ6)+1) -> 50 | AC6: =VLOOKUP(AB6,X5:Z9,2) -> 41 | AD6: =VLOOKUP(AB6,X5:Z9,3) -> 41 | AE6: PRO2: | AF6: =IF(AJ8=AJ9, AC6, FORECAST($AJ$7,$AC$6:$AD$6,$AJ$8:$AJ$9)) -> 41 | AH6: Residual Inlet Pressure | AI6: PRI: | AJ6: =Database!$B$3 -> 0
A7: 150 | B7: 121 | C7: 118 | D7: 117 | E7: 117 | F7: 116 | G7: 117 | H7: 116 | I7: 114 | J7: 112 | K7: 109 | L7: 106 | M7: 103 | P7: =A7 -> 150 | Q7: 121 | R7: =AVERAGE(C7:G7) -> 117 | S7: 115.6666667 | T7: 111.6666667 | U7: 106 | X7: =A7 -> 150 | Y7: =HLOOKUP($AJ$8,$B$4:$M$9,4) -> 121 | Z7: =HLOOKUP($AJ$9,$B$4:$M$9,4) -> 121 | AA7: PSI1: | AB7: =LARGE(A5:A9,COUNTIF(A5:A9,">" &AJ5)+1) ->  | AE7: PSO1: | AF7: =VLOOKUP(AB7,A5:B9,2) ->  | AH7: Flow Rate | AI7: Q0: | AJ7: =IF(Database!$B$4=500, 499.99, Database!$B$4) -> 0
A8: 200 | B8: 162 | C8: 160 | D8: 158 | E8: 158 | F8: 156 | G8: 156 | H8: 155 | I8: 153 | J8: 152 | K8: 151 | L8: 151 | M8: 144 | P8: =A8 -> 200 | Q8: 162 | R8: 157.6 | S8: 154.6666667 | T8: 152 | U8: 148.6666667 | X8: =A8 -> 200 | Y8: =HLOOKUP($AJ$8,$B$4:$M$9,5) -> 162 | Z8: =HLOOKUP($AJ$9,$B$4:$M$9,5) -> 162 | AA8: PSI2: | AB8: =SMALL(A5:A9,COUNTIF(A5:A9,"<"&AJ5)+1) -> 50 | AE8: PSO2: | AF8: =VLOOKUP(AB8,A5:B9,2) -> 41 | AH8: Nearest Known Flow Rate, 1 | AI8: Q1: | AJ8: =LARGE(B4:M4,COUNTIF(B4:M4,">" &AJ7)+1) -> 0
A9: 210 | B9: 172 | C9: 168 | D9: 167 | E9: 166 | F9: 164 | G9: 163 | H9: 163 | I9: 161 | J9: 161 | K9: 158 | L9: 155 | M9: 152 | P9: =A9 -> 210 | Q9: 172 | R9: 165.6 | S9: 162.3333333 | T9: 160 | U9: 155 | X9: =A9 -> 210 | Y9: =HLOOKUP($AJ$8,$B$4:$M$9,6) -> 172 | Z9: =HLOOKUP($AJ$9,$B$4:$M$9,6) -> 172 | AH9: Nearest Known Flow Rate, 2 | AI9: Q2: | AJ9: =SMALL(B4:M4,COUNTIF(B4:M4,"<"&AJ7)+1) -> 0
A11: Type 1 | B11: Outlet Pressures: Inlet Pressure [psig] vs. Flow Rate [GPM] | O11: Type 1 | P11: Inlet vs. Outlet Pressure Over Flow Range | W11: Type 1
A12: Inlet Pressure (psig) | B12: 0 | C12: 50 | D12: 75 | E12: 100 | F12: 150 | G12: 200 | H12: 250 | I12: 300 | J12: 350 | K12: 400 | L12: 450 | M12: 500 | Q12: Static | R12: 50-200 [GPM] | S12: 200-300 [GPM] | T12: 300-400 [GPM] | U12: 400-500 [GPM] | Y12: =CONCATENATE("Outlet Residual @ " &AJ$8& " GPM") -> Outlet Residual @ 0 GPM | Z12: =CONCATENATE("Outlet Residual @ " &AJ$9& " GPM") -> Outlet Residual @ 0 GPM | AC12: Const. PRI Interpolated @ Var. Flow
A13: 50 | B13: 36 | C13: 35 | D13: 35 | E13: 34 | F13: 34 | G13: 34 | H13: 32 | I13: 29 | O13: Inlet Pressure (psig) | P13: =A13 -> 50 | Q13: =B13 -> 36 | R13: =AVERAGE(C13:G13) -> 34.4 | S13: =AVERAGE(G13:I13) -> 31.66666667 | T13: =AVERAGE(I13:K13) -> 29 | W13: Inlet Pressure (psig) | X13: =A13 -> 50 | Y13: =HLOOKUP($AJ$8,$B$12:$M$17,2) -> 36 | Z13: =HLOOKUP($AJ$9,$B$12:$M$17,2) -> 36 | AA13: PRI1: | AB13: =LARGE(A13:A17,COUNTIF(A13:A17,">" &$AJ$6)+1) ->  | AC13: =VLOOKUP(AB13,X13:Z17,2) ->  | AD13: =VLOOKUP(AB13,X13:Z17,3) ->  | AE13: PRO1: | AF13: =IF(AC13=AD13,AC13, FORECAST($AJ$7,AC13:AD13,$AJ$8:$AJ$9)) -> 
A14: 100 | B14: 75 | C14: 69 | D14: 70 | E14: 71 | F14: 71 | G14: 66 | H14: 67 | I14: 66 | J14: 63 | K14: 60 | L14: 57 | M14: 53 | P14: =A14 -> 100 | Q14: =B14 -> 75 | R14: =AVERAGE(C14:G14) -> 69.4 | S14: =AVERAGE(G14:I14) -> 66.33333333 | T14: =AVERAGE(I14:K14) -> 63 | U14: =AVERAGE(K14:M14) -> 56.66666667 | X14: =A14 -> 100 | Y14: =HLOOKUP($AJ$8,$B$12:$M$17,3) -> 75 | Z14: =HLOOKUP($AJ$9,$B$12:$M$17,3) -> 75 | AA14: PRI2: | AB14: =SMALL(A13:A17,COUNTIF(A13:A17,"<"&$AJ$6)+1) -> 50 | AC14: =VLOOKUP(AB14,X13:Z17,2) -> 36 | AD14: =VLOOKUP(AB14,X13:Z17,3) -> 36 | AE14: PRO2: | AF14: =IF(AC14=AD14, AC14, FORECAST($AJ$7,AC14:AD14,$AJ$8:$AJ$9)) -> 36
A15: 150 | B15: 114 | C15: 105 | D15: 105 | E15: 106 | F15: 106 | G15: 105 | H15: 105 | I15: 102 | J15: 100 | K15: 98 | L15: 94 | M15: 90 | P15: =A15 -> 150 | Q15: 114 | R15: =AVERAGE(C15:G15) -> 105.4 | S15: 104 | T15: 100 | U15: 94 | X15: =A15 -> 150 | Y15: =HLOOKUP($AJ$8,$B$12:$M$17,4) -> 114 | Z15: =HLOOKUP($AJ$9,$B$12:$M$17,4) -> 114 | AA15: PSI1: | AB15: =LARGE(A13:A17,COUNTIF(A13:A17,">" &$AJ$5)+1) ->  | AE15: PSO1: | AF15: =VLOOKUP(AB15,A13:B17,2) -> 
A16: 200 | B16: 153 | C16: 141 | D16: 140 | E16: 139 | F16: 142 | G16: 141 | H16: 142 | I16: 139 | J16: 137 | K16: 134 | L16: 130 | M16: 127 | P16: =A16 -> 200 | Q16: 153 | R16: 140.6 | S16: 140.6666667 | T16: 136.6666667 | U16: 130.3333333 | X16: =A16 -> 200 | Y16: =HLOOKUP($AJ$8,$B$12:$M$17,5) -> 153 | Z16: =HLOOKUP($AJ$9,$B$12:$M$17,5) -> 153 | AA16: PSI2: | AB16: =SMALL(A13:A17,COUNTIF(A13:A17,"<"&$AJ$5)+1) -> 50 | AE16: PSO2: | AF16: =VLOOKUP(AB16,A13:B17,2) -> 36
A17: 220 | B17: 171 | C17: 156 | D17: 155 | E17: 154 | F17: 155 | G17: 155 | H17: 154 | I17: 155 | J17: 150 | K17: 149 | L17: 146 | M17: 143 | P17: =A17 -> 220 | Q17: 171 | R17: 155 | S17: 154.6666667 | T17: 151.3333333 | U17: 146 | X17: =A17 -> 220 | Y17: =HLOOKUP($AJ$8,$B$12:$M$17,6) -> 171 | Z17: =HLOOKUP($AJ$9,$B$12:$M$17,6) -> 171
A19: Type 2 | B19: Outlet Pressures: Inlet Pressure [psig] vs. Flow Rate [GPM] | O19: Type 2 | P19: Inlet vs. Outlet Pressure Over Flow Range | W19: Type 2
A20: Inlet Pressure (psig) | B20: 0 | C20: 50 | D20: 75 | E20: 100 | F20: 150 | G20: 200 | H20: 250 | I20: 300 | J20: 350 | K20: 400 | L20: 450 | M20: 500 | Q20: Static | R20: 50-200 [GPM] | S20: 200-300 [GPM] | T20: 300-400 [GPM] | U20: 400-500 [GPM] | Y20: =CONCATENATE("Outlet Residual @ " &AJ$8& " GPM") -> Outlet Residual @ 0 GPM | Z20: =CONCATENATE("Outlet Residual @ " &AJ$9& " GPM") -> Outlet Residual @ 0 GPM | AC20: Const. PRI Interpolated @ Var. Flow
A21: 50 | B21: 36 | C21: 31 | D21: 31 | E21: 36 | F21: 32 | G21: 31 | H21: 28 | I21: 26 | O21: Inlet Pressure (psig) | P21: =A21 -> 50 | Q21: =B21 -> 36 | R21: =AVERAGE(C21:G21) -> 32.2 | S21: =AVERAGE(G21:I21) -> 28.33333333 | T21: =AVERAGE(I21:K21) -> 26 | W21: Inlet Pressure (psig) | X21: =A21 -> 50 | Y21: =HLOOKUP($AJ$8,$B$20:$M$25,2) -> 36 | Z21: =HLOOKUP($AJ$9,$B$20:$M$25,2) -> 36 | AA21: PRI1: | AB21: =LARGE(A21:A25,COUNTIF(A21:A25,">" &$AJ$6)+1) ->  | AC21: =VLOOKUP(AB21,X21:Z25,2) ->  | AD21: =VLOOKUP(AB21,X21:Z25,3) ->  | AE21: PRO1: | AF21: =IF(AC21=AD21,AC21, FORECAST($AJ$7,AC21:AD21,$AJ$8:$AJ$9)) -> 
A22: 100 | B22: 73 | C22: 66 | D22: 67 | E22: 68 | F22: 68 | G22: 70 | H22: 64 | I22: 61 | J22: 58 | K22: 57 | L22: 56 | M22: 51 | P22: =A22 -> 100 | Q22: =B22 -> 73 | R22: =AVERAGE(C22:G22) -> 67.8 | S22: =AVERAGE(G22:I22) -> 65 | T22: =AVERAGE(I22:K22) -> 58.66666667 | U22: =AVERAGE(K22:M22) -> 54.66666667 | X22: =A22 -> 100 | Y22: =HLOOKUP($AJ$8,$B$20:$M$25,3) -> 73 | Z22: =HLOOKUP($AJ$9,$B$20:$M$25,3) -> 73 | AA22: PRI2: | AB22: =SMALL(A21:A25,COUNTIF(A21:A25,"<"&$AJ$6)+1) -> 50 | AC22: =VLOOKUP(AB22,X21:Z25,2) -> 36 | AD22: =VLOOKUP(AB22,X21:Z25,3) -> 36 | AE22: PRO2: | AF22: =IF(AC22=AD22, AC22, FORECAST($AJ$7,AC22:AD22,$AJ$8:$AJ$9)) -> 36
A23: 150 | B23: 110 | C23: 102 | D23: 100 | E23: 102 | F23: 104 | G23: 104 | H23: 102 | I23: 99 | J23: 96 | K23: 93 | L23: 90 | M23: 86 | P23: =A23 -> 150 | Q23: 110 | R23: =AVERAGE(C23:G23) -> 102.4 | S23: 101.6666667 | T23: 96 | U23: 89.66666667 | X23: =A23 -> 150 | Y23: =HLOOKUP($AJ$8,$B$20:$M$25,4) -> 110 | Z23: =HLOOKUP($AJ$9,$B$20:$M$25,4) -> 110 | AA23: PSI1: | AB23: =LARGE(A21:A25,COUNTIF(A21:A25,">" &$AJ$5)+1) ->  | AE23: PSO1: | AF23: =VLOOKUP(AB23,A21:B25,2) -> 
A24: 200 | B24: 150 | C24: 135 | D24: 133 | E24: 134 | F24: 137 | G24: 138 | H24: 136 | I24: 134 | J24: 132 | K24: 129 | L24: 127 | M24: 124 | P24: =A24 -> 200 | Q24: 150 | R24: 135.4 | S24: 136 | T24: 131.6666667 | U24: 126.6666667 | X24: =A24 -> 200 | Y24: =HLOOKUP($AJ$8,$B$20:$M$25,5) -> 150 | Z24: =HLOOKUP($AJ$9,$B$20:$M$25,5) -> 150 | AA24: PSI2: | AB24: =SMALL(A21:A25,COUNTIF(A21:A25,"<"&$AJ$5)+1) -> 50 | AE24: PSO2: | AF24: =VLOOKUP(AB24,A21:B25,2) -> 36
A25: 230 | B25: 172 | C25: 156 | D25: 153 | E25: 153 | F25: 157 | G25: 158 | H25: 157 | I25: 156 | J25: 153 | K25: 152 | L25: 145 | M25: 144 | P25: =A25 -> 230 | Q25: 172 | R25: 155.4 | S25: 157 | T25: 153.6666667 | U25: 147 | X25: =A25 -> 230 | Y25: =HLOOKUP($AJ$8,$B$20:$M$25,6) -> 172 | Z25: =HLOOKUP($AJ$9,$B$20:$M$25,6) -> 172
A27: Type 3 | B27: Outlet Pressures: Inlet Pressure [psig] vs. Flow Rate [GPM] | O27: Type 3 | P27: Inlet vs. Outlet Pressure Over Flow Range | W27: Type 3
A28: Inlet Pressure (psig) | B28: 0 | C28: 50 | D28: 75 | E28: 100 | F28: 150 | G28: 200 | H28: 250 | I28: 300 | J28: 350 | K28: 400 | L28: 450 | M28: 500 | Q28: Static | R28: 50-200 [GPM] | S28: 200-300 [GPM] | T28: 300-400 [GPM] | U28: 400-500 [GPM] | Y28: =CONCATENATE("Outlet Residual @ " &AJ$8& " GPM") -> Outlet Residual @ 0 GPM | Z28: =CONCATENATE("Outlet Residual @ " &AJ$9& " GPM") -> Outlet Residual @ 0 GPM | AC28: Const. PRI Interpolated @ Var. Flow | AH28: 2.5" Angle | AI28: Calculated Static Outlet Pressure | AJ28: Calculated Residual Outlet Pressure | AK28: Max. Flow Rate
A29: 50 | B29: 49 | C29: 26 | D29: 28 | E29: 29 | F29: 29 | G29: 27 | H29: 25 | I29: 23 | O29: Inlet Pressure (psig) | P29: =A29 -> 50 | Q29: =B29 -> 49 | R29: =AVERAGE(C29:G29) -> 27.8 | S29: =AVERAGE(G29:I29) -> 25 | T29: =AVERAGE(I29:K29) -> 23 | W29: Inlet Pressure (psig) | X29: =A29 -> 50 | Y29: =HLOOKUP($AJ$8,$B$28:$M$34,2) -> 49 | Z29: =HLOOKUP($AJ$9,$B$28:$M$34,2) -> 49 | AA29: PRI1: | AB29: =LARGE(A29:A34,COUNTIF(A29:A34,">" &$AJ$6)+1) ->  | AC29: =VLOOKUP(AB29,X29:Z34,2) ->  | AD29: =VLOOKUP(AB29,X29:Z34,3) ->  | AE29: PRO1: | AF29: =IF(AC29=AD29,AC29, FORECAST($AJ$7,AC29:AD29,$AJ$8:$AJ$9)) ->  | AH29: Type 0 | AI29: =IF(AF7=AF8,AF7,FORECAST($AJ$5,AF7:AF8,AB7:AB8)) ->  | AJ29: =IF(AF5=AF6,AF5,FORECAST($AJ$6,AF5:AF6,AB5:AB6)) ->  | AK29: 500
A30: 100 | B30: 61 | C30: 57 | D30: 58 | E30: 59 | F30: 57 | G30: 57 | H30: 56 | I30: 55 | J30: 52 | K30: 49 | L30: 47 | M30: 43 | P30: =A30 -> 100 | Q30: =B30 -> 61 | R30: =AVERAGE(C30:G30) -> 57.6 | S30: =AVERAGE(G30:I30) -> 56 | T30: =AVERAGE(I30:K30) -> 52 | U30: =AVERAGE(K30:M30) -> 46.33333333 | X30: 100 | Y30: =HLOOKUP($AJ$8,$B$28:$M$34,3) -> 61 | Z30: =HLOOKUP($AJ$9,$B$28:$M$34,3) -> 61 | AA30: PRI2: | AB30: =SMALL(A29:A34,COUNTIF(A29:A34,"<"&$AJ$6)+1) -> 50 | AC30: =VLOOKUP(AB30,X29:Z34,2) -> 49 | AD30: =VLOOKUP(AB30,X29:Z34,3) -> 49 | AE30: PRO2: | AF30: =IF(AC30=AD30, AC30, FORECAST($AJ$7,AC30:AD30,$AJ$8:$AJ$9)) -> 49 | AH30: Type 1 | AI30: =IF(AF15=AF16,AF15,FORECAST($AJ$5,AF15:AF16,AB15:AB16)) ->  | AJ30: =IF(AB13=AB14,AF13,FORECAST($AJ$6,AF13:AF14,AB13:AB14)) ->  | AK30: 500
A31: 150 | B31: 98 | C31: 89 | D31: 87 | E31: 85 | F31: 85 | G31: 86 | H31: 86 | I31: 84 | J31: 83 | K31: 82 | L31: 78 | M31: 74 | P31: =A31 -> 150 | Q31: =B31 -> 98 | R31: =AVERAGE(C31:G31) -> 86.4 | S31: 85.33333333 | T31: 83 | U31: 78 | X31: 150 | Y31: =HLOOKUP($AJ$8,$B$28:$M$34,4) -> 98 | Z31: =HLOOKUP($AJ$9,$B$28:$M$34,4) -> 98 | AA31: PSI1: | AB31: =LARGE(A29:A34,COUNTIF(A29:A34,">" &$AJ$5)+1) ->  | AE31: PSO1: | AF31: =VLOOKUP(AB31,A29:B33,2) ->  | AH31: Type 2 | AI31: =IF(AF23=AF24,AF23,FORECAST($AJ$5,AF23:AF24,AB23:AB24)) ->  | AJ31: =IF(AB21=AB22,AF21,FORECAST($AJ$6,AF21:AF22,AB21:AB22)) ->  | AK31: 500
A32: 200 | B32: 131 | C32: 121 | D32: 120 | E32: 117 | F32: 114 | G32: 117 | H32: 115 | I32: 114 | J32: 113 | K32: 110 | L32: 108 | M32: 107 | P32: =A32 -> 200 | Q32: 131 | R32: 117.8 | S32: 115.3333333 | T32: 112.3333333 | U32: 108.3333333 | X32: 200 | Y32: =HLOOKUP($AJ$8,$B$28:$M$34,5) -> 131 | Z32: =HLOOKUP($AJ$9,$B$28:$M$34,5) -> 131 | AA32: PSI2: | AB32: =SMALL(A29:A34,COUNTIF(A29:A34,"<"&$AJ$5)+1) -> 50 | AE32: PSO2: | AF32: =VLOOKUP(AB32,A29:B33,2) -> 49 | AH32: Type 3 | AI32: =IF(AF31=AF32,AF31,FORECAST($AJ$5,AF31:AF32,AB31:AB32)) ->  | AJ32: =IF(AB29=AB30,AF29,FORECAST($AJ$6,AF29:AF30,AB29:AB30)) ->  | AK32: 500
A33: 250 | B33: 161 | C33: 152 | D33: 151 | E33: 148 | F33: 144 | G33: 143 | H33: 141 | I33: 146 | J33: 143 | K33: 141 | L33: 138 | M33: 136 | P33: =A33 -> 250 | Q33: 161 | R33: 147.6 | S33: 143.3333333 | T33: 143.3333333 | U33: 138.3333333 | X33: 250 | Y33: =HLOOKUP($AJ$8,$B$28:$M$34,6) -> 161 | Z33: =HLOOKUP($AJ$9,$B$28:$M$34,6) -> 161 | AH33: Type 4 | AI33: =IF(AF40=AF41,AF40,FORECAST($AJ$5,AF40:AF41,AB40:AB41)) ->  | AJ33: =IF(AB38=AB39,AF38,FORECAST($AJ$6,AF38:AF39,AB38:AB39)) ->  | AK33: 500
A34: 265 | B34: 171 | C34: 162 | D34: 160 | E34: 158 | F34: 154 | G34: 151 | H34: 151 | I34: 152 | J34: 151 | K34: 150 | L34: 147 | M34: 144 | P34: =A34 -> 265 | Q34: 171 | R34: =AVERAGE(C34:G34) -> 157 | S34: =AVERAGE(G34:I34) -> 151.3333333 | T34: =AVERAGE(I34:K34) -> 151 | U34: =AVERAGE(K34:M34) -> 147 | X34: 265 | Y34: =HLOOKUP($AJ$8,$B$28:$M$34,7) -> 171 | Z34: =HLOOKUP($AJ$9,$B$28:$M$34,7) -> 171 | AH34: Type 5 | AI34: =IF(AF49=AF50,AF49,FORECAST($AJ$5,AF49:AF50,AB49:AB50)) ->  | AJ34: =IF(AB47=AB48,AF47,FORECAST($AJ$6,AF47:AF48,AB47:AB48)) ->  | AK34: 500
AH35: Type 6 | AI35: =IF(AF59=AF60,AF59,FORECAST($AJ$5,AF59:AF60,AB59:AB60)) ->  | AJ35: =IF(AB57=AB58,AF57,FORECAST($AJ$6,AF57:AF58,AB57:AB58)) ->  | AK35: 500
A36: Type 4 | B36: Outlet Pressures: Inlet Pressure [psig] vs. Flow Rate [GPM] | O36: Type 4 | P36: Inlet vs. Outlet Pressure Over Flow Range | W36: Type 4 | AH36: Type 7 | AI36: =IF(AF70=AF71,AF70,FORECAST($AJ$5,AF70:AF71,AB70:AB71)) ->  | AJ36: =IF(AB68=AB69,AF68,FORECAST($AJ$6,AF68:AF69,AB68:AB69)) ->  | AK36: 500
A37: Inlet Pressure (psig) | B37: 0 | C37: 50 | D37: 75 | E37: 100 | F37: 150 | G37: 200 | H37: 250 | I37: 300 | J37: 350 | K37: 400 | L37: 450 | M37: 500 | Q37: Static | R37: 50-200 [GPM] | S37: 200-300 [GPM] | T37: 300-400 [GPM] | U37: 400-500 [GPM] | Y37: =CONCATENATE("Outlet Residual @ " &AJ$8& " GPM") -> Outlet Residual @ 0 GPM | Z37: =CONCATENATE("Outlet Residual @ " &AJ$9& " GPM") -> Outlet Residual @ 0 GPM | AC37: Const. PRI Interpolated @ Var. Flow
A38: 50 | B38: 27 | C38: 23 | D38: 24 | E38: 23 | F38: 24 | G38: 22 | H38: 20 | I38: 19 | O38: Inlet Pressure (psig) | P38: =A38 -> 50 | Q38: =B38 -> 27 | R38: =AVERAGE(C38:G38) -> 23.2 | S38: =AVERAGE(G38:I38) -> 20.33333333 | T38: =AVERAGE(I38:K38) -> 19 | W38: Inlet Pressure (psig) | X38: =A38 -> 50 | Y38: =HLOOKUP($AJ$8,$B$37:$M$43,2) -> 27 | Z38: =HLOOKUP($AJ$9,$B$37:$M$43,2) -> 27 | AA38: PRI1: | AB38: =LARGE(A38:A43,COUNTIF(A38:A43,">" &$AJ$6)+1) ->  | AC38: =VLOOKUP(AB38,X38:Z43,2) ->  | AD38: =VLOOKUP(AB38,X38:Z43,3) ->  | AE38: PRO1: | AF38: =IF(AC38=AD38,AC38, FORECAST($AJ$7,AC38:AD38,$AJ$8:$AJ$9)) -> 
A39: 100 | B39: 57 | C39: 50 | D39: 50 | E39: 48 | F39: 49 | G39: 48 | H39: 47 | I39: 46 | J39: 44 | K39: 42 | L39: 38 | M39: 37 | P39: =A39 -> 100 | Q39: =B39 -> 57 | R39: =AVERAGE(C39:G39) -> 49 | S39: =AVERAGE(G39:I39) -> 47 | T39: =AVERAGE(I39:K39) -> 44 | U39: =AVERAGE(K39:M39) -> 39 | X39: 100 | Y39: =HLOOKUP($AJ$8,$B$37:$M$43,3) -> 57 | Z39: =HLOOKUP($AJ$9,$B$37:$M$43,3) -> 57 | AA39: PRI2: | AB39: =SMALL(A38:A43,COUNTIF(A38:A43,"<"&$AJ$6)+1) -> 50 | AC39: =VLOOKUP(AB39,X38:Z43,2) -> 27 | AD39: =VLOOKUP(AB39,X38:Z43,3) -> 27 | AE39: PRO2: | AF39: =IF(AC39=AD39, AC39, FORECAST($AJ$7,AC39:AD39,$AJ$8:$AJ$9)) -> 27
A40: 150 | B40: 87 | C40: 77 | D40: 76 | E40: 74 | F40: 72 | G40: 74 | H40: 73 | I40: 68 | J40: 71 | K40: 67 | L40: 65 | M40: 62 | P40: =A40 -> 150 | Q40: 87 | R40: =AVERAGE(C40:G40) -> 74.6 | S40: 71.66666667 | T40: 68.66666667 | U40: 64.66666667 | X40: 150 | Y40: =HLOOKUP($AJ$8,$B$37:$M$43,4) -> 87 | Z40: =HLOOKUP($AJ$9,$B$37:$M$43,4) -> 87 | AA40: PSI1: | AB40: =LARGE(A38:A43,COUNTIF(A38:A43,">" &$AJ$5)+1) ->  | AE40: PSO1: | AF40: =VLOOKUP(AB40,A38:B43,2) -> 
A41: 200 | B41: 118 | C41: 105 | D41: 104 | E41: 102 | F41: 100 | G41: 96 | H41: 101 | I41: 98 | J41: 98 | K41: 96 | L41: 93 | M41: 91 | P41: =A41 -> 200 | Q41: 118 | R41: 101.4 | S41: 98.33333333 | T41: 97.33333333 | U41: 93.33333333 | X41: 200 | Y41: =HLOOKUP($AJ$8,$B$37:$M$43,5) -> 118 | Z41: =HLOOKUP($AJ$9,$B$37:$M$43,5) -> 118 | AA41: PSI2: | AB41: =SMALL(A38:A43,COUNTIF(A38:A43,"<"&$AJ$5)+1) -> 50 | AE41: PSO2: | AF41: =VLOOKUP(AB41,A38:B43,2) -> 27
A42: 250 | B42: 146 | C42: 134 | D42: 132 | E42: 130 | F42: 127 | G42: 122 | H42: 120 | I42: 124 | J42: 126 | K42: 122 | L42: 119 | M42: 117 | P42: =A42 -> 250 | Q42: 146 | R42: 129 | S42: 122 | T42: 124 | U42: 119.3333333 | X42: 250 | Y42: =HLOOKUP($AJ$8,$B$37:$M$43,6) -> 146 | Z42: =HLOOKUP($AJ$9,$B$37:$M$43,6) -> 146
A43: 300 | B43: 175 | C43: 165 | D43: 160 | E43: 160 | F43: 154 | G43: 149 | H43: 146 | I43: 142 | J43: 148 | K43: 147 | L43: 146 | M43: 143 | P43: =A43 -> 300 | Q43: 175 | R43: =AVERAGE(C43:G43) -> 157.6 | S43: =AVERAGE(G43:I43) -> 145.6666667 | T43: =AVERAGE(I43:K43) -> 145.6666667 | U43: =AVERAGE(K43:M43) -> 145.3333333 | X43: 300 | Y43: =HLOOKUP($AJ$8,$B$37:$M$43,7) -> 175 | Z43: =HLOOKUP($AJ$9,$B$37:$M$43,7) -> 175
A45: Type 5 | B45: Outlet Pressures: Inlet Pressure [psig] vs. Flow Rate [GPM] | O45: Type 5 | P45: Inlet vs. Outlet Pressure Over Flow Range | W45: Type 5
A46: Inlet Pressure (psig) | B46: 0 | C46: 50 | D46: 75 | E46: 100 | F46: 150 | G46: 200 | H46: 250 | I46: 300 | J46: 350 | K46: 400 | L46: 450 | M46: 500 | Q46: Static | R46: 50-200 [GPM] | S46: 200-300 [GPM] | T46: 300-400 [GPM] | U46: 400-500 [GPM] | Y46: =CONCATENATE("Outlet Residual @ " &AJ$8& " GPM") -> Outlet Residual @ 0 GPM | Z46: =CONCATENATE("Outlet Residual @ " &AJ$9& " GPM") -> Outlet Residual @ 0 GPM | AC46: Const. PRI Interpolated @ Var. Flow
A47: 50 | B47: 30 | C47: 22 | D47: 22 | E47: 23 | F47: 21 | G47: 20 | H47: 20 | O47: Inlet Pressure (psig) | P47: =A47 -> 50 | Q47: =B47 -> 30 | R47: =AVERAGE(C47:G47) -> 21.6 | S47: =AVERAGE(G47:I47) -> 20 | W47: Inlet Pressure (psig) | X47: =A47 -> 50 | Y47: =HLOOKUP($AJ$8,$B$46:$M$53,2) -> 30 | Z47: =HLOOKUP($AJ$9,$B$46:$M$53,2) -> 30 | AA47: PRI1: | AB47: =LARGE(A47:A53,COUNTIF(A47:A53,">" &$AJ$6)+1) ->  | AC47: =VLOOKUP(AB47,X47:Z52,2) ->  | AD47: =VLOOKUP(AB47,X47:Z52,3) ->  | AE47: PRO1: | AF47: =IF(AC47=AD47,AC47, FORECAST($AJ$7,AC47:AD47,$AJ$8:$AJ$9)) -> 
A48: 100 | B48: 53 | C48: 46 | D48: 46 | E48: 45 | F48: 44 | G48: 44 | H48: 44 | I48: 42 | J48: 40 | K48: 37 | L48: 35 | M48: 34 | P48: =A48 -> 100 | Q48: =B48 -> 53 | R48: =AVERAGE(C48:G48) -> 45 | S48: =AVERAGE(G48:I48) -> 43.33333333 | T48: =AVERAGE(I48:K48) -> 39.66666667 | U48: =AVERAGE(K48:M48) -> 35.33333333 | X48: 100 | Y48: =HLOOKUP($AJ$8,$B$46:$M$53,3) -> 53 | Z48: =HLOOKUP($AJ$9,$B$46:$M$53,3) -> 53 | AA48: PRI2: | AB48: =SMALL(A47:A53,COUNTIF(A47:A53,"<"&$AJ$6)+1) -> 50 | AC48: =VLOOKUP(AB48,X47:Z52,2) -> 30 | AD48: =VLOOKUP(AB48,X47:Z52,3) -> 30 | AE48: PRO2: | AF48: =IF(AC48=AD48, AC48, FORECAST($AJ$7,AC48:AD48,$AJ$8:$AJ$9)) -> 30
A49: 150 | B49: 80 | C49: 71 | D49: 70 | E49: 69 | F49: 66 | G49: 66 | H49: 68 | I49: 67 | J49: 64 | K49: 62 | L49: 59 | M49: 57 | P49: 150 | Q49: 80 | R49: =AVERAGE(C49:G49) -> 68.4 | S49: 67 | T49: 64.33333333 | U49: 59.33333333 | X49: 150 | Y49: =HLOOKUP($AJ$8,$B$46:$M$53,4) -> 80 | Z49: =HLOOKUP($AJ$9,$B$46:$M$53,4) -> 80 | AA49: PSI1: | AB49: =LARGE(A47:A53,COUNTIF(A47:A53,">" &$AJ$5)+1) ->  | AE49: PSO1: | AF49: =VLOOKUP(AB49,A47:B53,2) -> 
A50: 200 | B50: 108 | C50: 97 | D50: 96 | E50: 93 | F50: 91 | G50: 87 | H50: 88 | I50: 91 | J50: 89 | K50: 86 | L50: 84 | M50: 80 | P50: 200 | Q50: 108 | R50: 92.8 | S50: 88.66666667 | T50: 88.66666667 | U50: 83.33333333 | X50: 200 | Y50: =HLOOKUP($AJ$8,$B$46:$M$53,5) -> 108 | Z50: =HLOOKUP($AJ$9,$B$46:$M$53,5) -> 108 | AA50: PSI2: | AB50: =SMALL(A47:A53,COUNTIF(A47:A53,"<"&$AJ$5)+1) -> 50 | AE50: PSO2: | AF50: =VLOOKUP(AB50,A47:B53,2) -> 30
A51: 250 | B51: 136 | C51: 124 | D51: 121 | E51: 119 | F51: 118 | G51: 115 | H51: 108 | I51: 107 | J51: 112 | K51: 110 | L51: 108 | M51: 105 | P51: 250 | Q51: 136 | R51: 119.4 | S51: 110 | T51: 109.6666667 | U51: 107.6666667 | X51: 250 | Y51: =HLOOKUP($AJ$8,$B$46:$M$53,6) -> 136 | Z51: =HLOOKUP($AJ$9,$B$46:$M$53,6) -> 136
A52: 300 | B52: 163 | C52: 153 | D52: 150 | E52: 146 | F52: 141 | G52: 136 | H52: 133 | I52: 129 | J52: 124 | K52: 133 | L52: 131 | M52: 126 | P52: 300 | Q52: 163 | R52: 145.2 | S52: 132.6666667 | T52: 128.6666667 | U52: 130 | X52: 300 | Y52: =HLOOKUP($AJ$8,$B$46:$M$53,7) -> 163 | Z52: =HLOOKUP($AJ$9,$B$46:$M$53,7) -> 163
A53: 320 | B53: 172 | C53: 163 | D53: 162 | E53: 158 | F53: 152 | G53: 148 | H53: 145 | I53: 140 | J53: 136 | K53: 135 | L53: 139 | M53: 138 | P53: 320 | Q53: =B53 -> 172 | R53: =AVERAGE(C53:G53) -> 156.6 | S53: =AVERAGE(G53:I53) -> 144.3333333 | T53: =AVERAGE(I53:K53) -> 137 | U53: =AVERAGE(K53:M53) -> 137.3333333 | X53: 320 | Y53: =HLOOKUP($AJ$8,$B$46:$M$53,8) -> 172 | Z53: =HLOOKUP($AJ$9,$B$46:$M$53,8) -> 172
A55: Type 6 | B55: Outlet Pressures: Inlet Pressure [psig] vs. Flow Rate [GPM] | O55: Type 6 | P55: Inlet vs. Outlet Pressure Over Flow Range | W55: Type 6
A56: Inlet Pressure (psig) | B56: 0 | C56: 50 | D56: 75 | E56: 100 | F56: 150 | G56: 200 | H56: 250 | I56: 300 | J56: 350 | K56: 400 | L56: 450 | M56: 500 | Q56: Static | R56: 50-200 [GPM] | S56: 200-300 [GPM] | T56: 300-400 [GPM] | U56: 400-500 [GPM] | Y56: =CONCATENATE("Outlet Residual @ " &AJ$8& " GPM") -> Outlet Residual @ 0 GPM | Z56: =CONCATENATE("Outlet Residual @ " &AJ$9& " GPM") -> Outlet Residual @ 0 GPM | AC56: Const. PRI Interpolated @ Var. Flow
A57: 50 | B57: 24 | C57: 17 | D57: 16 | E57: 14 | F57: 17 | G57: 16 | H57: 15 | O57: Inlet Pressure (psig) | P57: =A57 -> 50 | Q57: =B57 -> 24 | R57: =AVERAGE(C57:G57) -> 16 | S57: =AVERAGE(G57:I57) -> 15.5 | W57: Inlet Pressure (psig) | X57: =A57 -> 50 | Y57: =HLOOKUP($AJ$8,$B$56:$M$64,2) -> 24 | Z57: =HLOOKUP($AJ$9,$B$56:$M$64,2) -> 24 | AA57: PRI1: | AB57: =LARGE(A57:A64,COUNTIF(A57:A64,">" &$AJ$6)+1) ->  | AC57: =VLOOKUP(AB57,X57:Z62,2) ->  | AD57: =VLOOKUP(AB57,X57:Z62,3) ->  | AE57: PRO1: | AF57: =IF(AC57=AD57,AC57, FORECAST($AJ$7,AC57:AD57,$AJ$8:$AJ$9)) -> 
A58: 100 | B58: 46 | C58: 38 | D58: 37 | E58: 36 | F58: 34 | G58: 34 | H58: 35 | I58: 34 | J58: 32 | K58: 29 | L58: 28 | P58: =A58 -> 100 | Q58: =B58 -> 46 | R58: =AVERAGE(C58:G58) -> 35.8 | S58: =AVERAGE(G58:I58) -> 34.33333333 | T58: =AVERAGE(I58:K58) -> 31.66666667 | U58: =AVERAGE(K58:M58) -> 28.5 | X58: 100 | Y58: =HLOOKUP($AJ$8,$B$56:$M$64,3) -> 46 | Z58: =HLOOKUP($AJ$9,$B$56:$M$64,3) -> 46 | AA58: PRI2: | AB58: =SMALL(A57:A64,COUNTIF(A57:A64,"<"&$AJ$6)+1) -> 50 | AC58: =VLOOKUP(AB58,X57:Z62,2) -> 24 | AD58: =VLOOKUP(AB58,X57:Z62,3) -> 24 | AE58: PRO2: | AF58: =IF(AC58=AD58, AC58, FORECAST($AJ$7,AC58:AD58,$AJ$8:$AJ$9)) -> 24
A59: 150 | B59: 70 | C59: 60 | D59: 60 | E59: 58 | F59: 52 | G59: 51 | H59: 52 | I59: 52 | J59: 52 | K59: 50 | L59: 47 | M59: 43 | P59: =A59 -> 150 | Q59: 70 | R59: =AVERAGE(C59:G59) -> 56.2 | S59: 51.66666667 | T59: 51.33333333 | U59: 46.66666667 | X59: 150 | Y59: =HLOOKUP($AJ$8,$B$56:$M$64,4) -> 70 | Z59: =HLOOKUP($AJ$9,$B$56:$M$64,4) -> 70 | AA59: PSI1: | AB59: =LARGE(A57:A64,COUNTIF(A57:A64,">" &$AJ$5)+1) ->  | AE59: PSO1: | AF59: =VLOOKUP(AB59,A57:B64,2) -> 
A60: 200 | B60: 93 | C60: 84 | D60: 82 | E60: 80 | F60: 76 | G60: 72 | H60: 70 | I60: 69 | J60: 70 | K60: 69 | L60: 68 | M60: 65 | P60: =A60 -> 200 | Q60: 93 | R60: 78.8 | S60: 70.33333333 | T60: 69.33333333 | U60: 67.33333333 | X60: 200 | Y60: =HLOOKUP($AJ$8,$B$56:$M$64,5) -> 93 | Z60: =HLOOKUP($AJ$9,$B$56:$M$64,5) -> 93 | AA60: PSI2: | AB60: =SMALL(A57:A64,COUNTIF(A57:A64,"<"&$AJ$5)+1) -> 50 | AE60: PSO2: | AF60: =VLOOKUP(AB60,A57:B64,2) -> 24
A61: 250 | B61: 118 | C61: 106 | D61: 103 | E61: 102 | F61: 98 | G61: 97 | H61: 91 | I61: 88 | J61: 86 | K61: 85 | L61: 86 | M61: 87 | P61: =A61 -> 250 | Q61: 118 | R61: 101.2 | S61: 92 | T61: 86.33333333 | U61: 86 | X61: 250 | Y61: =HLOOKUP($AJ$8,$B$56:$M$64,6) -> 118 | Z61: =HLOOKUP($AJ$9,$B$56:$M$64,6) -> 118
A62: 300 | B62: 140 | C62: 127 | D62: 128 | E62: 128 | F62: 123 | G62: 119 | H62: 115 | I62: 110 | J62: 106 | K62: 104 | L62: 104 | M62: 104 | P62: =A62 -> 300 | Q62: 140 | R62: 125 | S62: 114.6666667 | T62: 106.6666667 | U62: 104 | X62: 300 | Y62: =HLOOKUP($AJ$8,$B$56:$M$64,7) -> 140 | Z62: =HLOOKUP($AJ$9,$B$56:$M$64,7) -> 140
A63: 350 | B63: 166 | C63: 157 | D63: 154 | E63: 153 | F63: 146 | G63: 144 | H63: 138 | I63: 137 | J63: 138 | K63: 126 | L63: 121 | M63: 123 | P63: =A63 -> 350 | Q63: =B63 -> 166 | R63: =AVERAGE(C63:G63) -> 150.8 | S63: =AVERAGE(G63:I63) -> 139.6666667 | T63: =AVERAGE(I63:K63) -> 133.6666667 | U63: =AVERAGE(K63:M63) -> 123.3333333 | X63: 350 | Y63: =HLOOKUP($AJ$8,$B$56:$M$64,8) -> 166 | Z63: =HLOOKUP($AJ$9,$B$56:$M$64,8) -> 166
A64: 360 | B64: 171 | C64: 163 | D64: 161 | E64: 158 | F64: 156 | G64: 151 | H64: 148 | I64: 143 | J64: 140 | K64: 134 | L64: 131 | M64: 128 | P64: 360 | Q64: 171 | R64: 157.8 | S64: 147.3333333 | T64: 139 | U64: 131 | X64: 360 | Y64: =HLOOKUP($AJ$8,$B$56:$M$64,9) -> 171 | Z64: =HLOOKUP($AJ$9,$B$56:$M$64,9) -> 171
A66: Type 7 | B66: Outlet Pressures: Inlet Pressure [psig] vs. Flow Rate [GPM] | O66: Type 7 | P66: Inlet vs. Outlet Pressure Over Flow Range | W66: Type 7
A67: Inlet Pressure (psig) | B67: 0 | C67: 50 | D67: 75 | E67: 100 | F67: 150 | G67: 200 | H67: 250 | I67: 300 | J67: 350 | K67: 400 | L67: 450 | M67: 500 | Q67: Static | R67: 50-200 [GPM] | S67: 200-300 [GPM] | T67: 300-400 [GPM] | U67: 400-500 [GPM] | Y67: =CONCATENATE("Outlet Residual @ " &AJ$8& " GPM") -> Outlet Residual @ 0 GPM | Z67: =CONCATENATE("Outlet Residual @ " &AJ$9& " GPM") -> Outlet Residual @ 0 GPM | AC67: Const. PRI Interpolated @ Var. Flow
A68: 50 | B68: 19 | C68: 14 | D68: 14 | E68: 14 | F68: 14 | G68: 13 | O68: Inlet Pressure (psig) | P68: =A68 -> 50 | Q68: =B68 -> 19 | R68: =AVERAGE(C68:G68) -> 13.8 | S68: =AVERAGE(G68:I68) -> 13 | W68: Inlet Pressure (psig) | X68: =A68 -> 50 | Y68: =HLOOKUP($AJ$8,$B$67:$M$75,2) -> 19 | Z68: =HLOOKUP($AJ$9,$B$67:$M$75,2) -> 19 | AA68: PRI1: | AB68: =LARGE(A68:A75,COUNTIF(A68:A75,">" &$AJ$6)+1) ->  | AC68: =VLOOKUP(AB68,X68:Z73,2) ->  | AD68: =VLOOKUP(AB68,X68:Z73,3) ->  | AE68: PRO1: | AF68: =IF(AC68=AD68,AC68, FORECAST($AJ$7,AC68:AD68,$AJ$8:$AJ$9)) -> 
A69: 100 | B69: 40 | C69: 30 | D69: 29 | E69: 29 | F69: 29 | G69: 29 | H69: 28 | I69: 27 | J69: 25 | K69: 23 | P69: =A69 -> 100 | Q69: =B69 -> 40 | R69: =AVERAGE(C69:G69) -> 29.2 | S69: =AVERAGE(G69:I69) -> 28 | T69: =AVERAGE(I69:K69) -> 25 | U69: =AVERAGE(K69:M69) -> 23 | X69: 100 | Y69: =HLOOKUP($AJ$8,$B$67:$M$75,3) -> 40 | Z69: =HLOOKUP($AJ$9,$B$67:$M$75,3) -> 40 | AA69: PRI2: | AB69: =SMALL(A68:A75,COUNTIF(A68:A75,"<"&$AJ$6)+1) -> 50 | AC69: =VLOOKUP(AB69,X68:Z73,2) -> 19 | AD69: =VLOOKUP(AB69,X68:Z73,3) -> 19 | AE69: PRO2: | AF69: =IF(AC69=AD69, AC69, FORECAST($AJ$7,AC69:AD69,$AJ$8:$AJ$9)) -> 19
A70: 150 | B70: 64 | C70: 51 | D70: 47 | E70: 46 | F70: 44 | G70: 42 | H70: 45 | I70: 44 | J70: 43 | K70: 40 | L70: 37 | M70: 36 | P70: =A70 -> 150 | Q70: 64 | R70: =AVERAGE(C70:G70) -> 46 | S70: 43.66666667 | T70: 42.33333333 | U70: 37.66666667 | X70: 150 | Y70: =HLOOKUP($AJ$8,$B$67:$M$75,4) -> 64 | Z70: =HLOOKUP($AJ$9,$B$67:$M$75,4) -> 64 | AA70: PSI1: | AB70: =LARGE(A68:A75,COUNTIF(A68:A75,">" &$AJ$5)+1) ->  | AE70: PSO1: | AF70: =VLOOKUP(AB70,A68:B75,2) -> 
A71: 200 | B71: 85 | C71: 73 | D71: 71 | E71: 66 | F71: 60 | G71: 58 | H71: 59 | I71: 58 | J71: 59 | K71: 57 | L71: 55 | M71: 51 | P71: =A71 -> 200 | Q71: 85 | R71: 65.6 | S71: 58.33333333 | T71: 58 | U71: 54.33333333 | X71: 200 | Y71: =HLOOKUP($AJ$8,$B$67:$M$75,5) -> 85 | Z71: =HLOOKUP($AJ$9,$B$67:$M$75,5) -> 85 | AA71: PSI2: | AB71: =SMALL(A68:A75,COUNTIF(A68:A75,"<"&$AJ$5)+1) -> 50 | AE71: PSO2: | AF71: =VLOOKUP(AB71,A68:B75,2) -> 19
A72: 250 | B72: 107 | C72: 95 | D72: 94 | E72: 91 | F72: 85 | G72: 77 | H72: 75 | I72: 74 | J72: 73 | K72: 73 | L72: 72 | M72: 70 | P72: =A72 -> 250 | Q72: 107 | R72: 88.4 | S72: 75.33333333 | T72: 73.33333333 | U72: 71.66666667 | X72: 250 | Y72: =HLOOKUP($AJ$8,$B$67:$M$75,6) -> 107 | Z72: =HLOOKUP($AJ$9,$B$67:$M$75,6) -> 107
A73: 300 | B73: 127 | C73: 120 | D73: 117 | E73: 115 | F73: 111 | G73: 103 | H73: 97 | I73: 94 | J73: 90 | K73: 91 | L73: 92 | M73: 92 | P73: =A73 -> 300 | Q73: 127 | R73: 113.2 | S73: 98 | T73: 91.66666667 | U73: 91.66666667 | X73: 300 | Y73: =HLOOKUP($AJ$8,$B$67:$M$75,7) -> 127 | Z73: =HLOOKUP($AJ$9,$B$67:$M$75,7) -> 127
A74: 350 | B74: 148 | C74: 142 | D74: 138 | E74: 139 | F74: 135 | G74: 130 | H74: 121 | I74: 115 | J74: 112 | K74: 109 | L74: 109 | M74: 110 | P74: =A74 -> 350 | Q74: =B74 -> 148 | R74: =AVERAGE(C74:G74) -> 136.8 | S74: =AVERAGE(G74:I74) -> 122 | T74: =AVERAGE(I74:K74) -> 112 | U74: =AVERAGE(K74:M74) -> 109.3333333 | X74: 350 | Y74: =HLOOKUP($AJ$8,$B$67:$M$75,8) -> 148 | Z74: =HLOOKUP($AJ$9,$B$67:$M$75,8) -> 148
A75: 400 | B75: 171 | C75: 164 | D75: 163 | E75: 159 | F75: 156 | G75: 149 | H75: 146 | I75: 135 | J75: 132 | K75: 131 | L75: 127 | M75: 127 | P75: 400 | Q75: 171 | R75: 158.2 | S75: 143.3333333 | T75: 132.6666667 | U75: 128.3333333 | X75: 400 | Y75: =HLOOKUP($AJ$8,$B$67:$M$75,9) -> 171 | Z75: =HLOOKUP($AJ$9,$B$67:$M$75,9) -> 171

Sheet 2.5_Straight (hidden)
A1: 2.5" Straight Body - Outlet Pressures @ Flow Rate
A2: Data compiled from Project No. 12CA5765 - EX5549. Published 13-Nov-2013. Values with blank data indicate pumps were unable to meet required specifications.
A3: Type 0 | B3: Outlet Pressures @ Flow Rate, GPM | O3: Type 0 | P3: Inlet vs. Outlet Pressure Over Flow Range | W3: Type 0
A4: Inlet Pressure (psig) | B4: 0 | C4: 50 | D4: 100 | E4: 150 | F4: 175 | G4: 200 | H4: 250 | I4: 300 | J4: 350 | K4: 400 | L4: 450 | M4: 500 | Q4: Static | R4: 50-200 [GPM] | S4: 200-300 [GPM] | T4: 300-400 [GPM] | U4: 400-500 [GPM] | Y4: =CONCATENATE("Outlet Residual @ " &AJ$8& " GPM") -> Outlet Residual @ 0 GPM | Z4: =CONCATENATE("Outlet Residual @ " &AJ$9& " GPM") -> Outlet Residual @ 0 GPM | AC4: Const. PRI Interpolated @ Var. Flow | AH4: Variables:
A5: 50 | B5: 41 | C5: 35 | D5: 36 | E5: 29 | F5: 26 | G5: 23 | H5: 16 | O5: Inlet Pressure (psig) | P5: =A5 -> 50 | Q5: =B5 -> 41 | R5: =AVERAGE(C5:G5) -> 29.8 | S5: =AVERAGE(G5:I5) -> 19.5 | W5: Inlet Pressure (psig) | X5: =A5 -> 50 | Y5: =HLOOKUP($AJ$8,$B$4:$M$9,2) -> 41 | Z5: =HLOOKUP($AJ$9,$B$4:$M$9,2) -> 41 | AA5: PRI1: | AB5: =LARGE(A5:A9,COUNTIF(A5:A9,">" &$AJ$6)+1) ->  | AC5: =VLOOKUP(AB5,X5:Z9,2) ->  | AD5: =VLOOKUP(AB5,X5:Z9,3) ->  | AE5: PRO1: | AF5: =IF(AJ8=AJ9, AC5, FORECAST(AJ7,$AC$5:$AD$5,$AJ$8:$AJ$9)) ->  | AH5: Static Inlet Pressure | AI5: PSI: | AJ5: =Database!$B$2 -> 0
A6: 100 | B6: 83 | C6: 74 | D6: 69 | E6: 68 | F6: 68 | G6: 63 | H6: 55 | I6: 46 | J6: 36 | K6: 22 | P6: =A6 -> 100 | Q6: =B6 -> 83 | R6: =AVERAGE(C6:G6) -> 68.4 | S6: =AVERAGE(G6:I6) -> 54.66666667 | T6: =AVERAGE(I6:K6) -> 34.66666667 | U6: =AVERAGE(K6:M6) -> 22 | X6: =A6 -> 100 | Y6: =HLOOKUP($AJ$8,$B$4:$M$9,3) -> 83 | Z6: =HLOOKUP($AJ$9,$B$4:$M$9,3) -> 83 | AA6: PRI2: | AB6: =SMALL(A5:A9,COUNTIF(A5:A9,"<"&$AJ$6)+1) -> 50 | AC6: =VLOOKUP(AB6,X5:Z9,2) -> 41 | AD6: =VLOOKUP(AB6,X5:Z9,3) -> 41 | AE6: PRO2: | AF6: =IF(AJ8=AJ9, AC6, FORECAST($AJ$7,$AC$6:$AD$6,$AJ$8:$AJ$9)) -> 41 | AH6: Residual Inlet Pressure | AI6: PRI: | AJ6: =Database!$B$3 -> 0
A7: 150 | B7: 122 | C7: 114 | D7: 106 | E7: 105 | F7: 105 | G7: 105 | H7: 99 | I7: 86 | J7: 74 | K7: 64 | L7: 45 | P7: =A7 -> 150 | Q7: 122 | R7: =AVERAGE(C7:G7) -> 107 | S7: 96.66666667 | T7: 74.66666667 | U7: =AVERAGE(K7:M7) -> 54.5 | X7: =A7 -> 150 | Y7: =HLOOKUP($AJ$8,$B$4:$M$9,4) -> 122 | Z7: =HLOOKUP($AJ$9,$B$4:$M$9,4) -> 122 | AA7: PSI1: | AB7: =LARGE(A5:A9,COUNTIF(A5:A9,">" &$AJ$5)+1) ->  | AE7: PSO1: | AF7: =VLOOKUP(AB7,A5:B9,2) ->  | AH7: Flow Rate | AI7: Q0: | AJ7: =IF(Database!$B$4=500, 499.99, Database!$B$4) -> 0
A8: 200 | B8: 164 | C8: 149 | D8: 143 | E8: 139 | F8: 138 | G8: 140 | H8: 132 | I8: 123 | J8: 113 | K8: 98 | L8: 88 | M8: 76 | P8: =A8 -> 200 | Q8: 164 | R8: 141.8 | S8: 131.6666667 | T8: 111.3333333 | U8: =AVERAGE(K8:M8) -> 87.33333333 | X8: =A8 -> 200 | Y8: =HLOOKUP($AJ$8,$B$4:$M$9,5) -> 164 | Z8: =HLOOKUP($AJ$9,$B$4:$M$9,5) -> 164 | AA8: PSI2: | AB8: =SMALL(A5:A9,COUNTIF(A5:A9,"<"&$AJ$5)+1) -> 50 | AE8: PSO2: | AF8: =VLOOKUP(AB8,A5:B9,2) -> 41 | AH8: Nearest Known Flow Rate, 1 | AI8: Q1: | AJ8: =LARGE(B4:M4,COUNTIF(B4:M4,">" &AJ7)+1) -> 0
A9: 210 | B9: 171 | C9: 157 | D9: 150 | E9: 147 | F9: 148 | G9: 150 | H9: 142 | I9: 131 | J9: 120 | K9: 107 | L9: 94 | M9: 80 | P9: =A9 -> 210 | Q9: 171 | R9: 150.4 | S9: 141 | T9: 119.3333333 | U9: =AVERAGE(K9:M9) -> 93.66666667 | X9: =A9 -> 210 | Y9: =HLOOKUP($AJ$8,$B$4:$M$9,6) -> 171 | Z9: =HLOOKUP($AJ$9,$B$4:$M$9,6) -> 171 | AH9: Nearest Known Flow Rate, 2 | AI9: Q2: | AJ9: =SMALL(B4:M4,COUNTIF(B4:M4,"<"&AJ7)+1) -> 0
A11: Type 1 | B11: Outlet Pressures @ Flow Rate, GPM | O11: Type 1 | P11: Inlet vs. Outlet Pressure Over Flow Range | W11: Type 1
A12: Inlet Pressure (psig) | B12: 0 | C12: 50 | D12: 100 | E12: 150 | F12: 175 | G12: 200 | H12: 250 | I12: 300 | J12: 350 | K12: 400 | L12: 450 | M12: 500 | Q12: Static | R12: 50-200 [GPM] | S12: 200-300 [GPM] | T12: 300-400 [GPM] | U12: 400-500 [GPM] | Y12: =CONCATENATE("Outlet Residual @ " &AJ$8& " GPM") -> Outlet Residual @ 0 GPM | Z12: =CONCATENATE("Outlet Residual @ " &AJ$9& " GPM") -> Outlet Residual @ 0 GPM | AC12: Const. PRI Interpolated @ Var. Flow
A13: 50 | B13: 38 | C13: 32 | D13: 31 | E13: 27 | F13: 23 | G13: 21 | H13: 12 | O13: Inlet Pressure (psig) | P13: =A13 -> 50 | Q13: =B13 -> 38 | R13: =AVERAGE(C13:G13) -> 26.8 | S13: =AVERAGE(G13:I13) -> 16.5 | W13: Inlet Pressure (psig) | X13: =A13 -> 50 | Y13: =HLOOKUP($AJ$8,$B$12:$M$17,2) -> 38 | Z13: =HLOOKUP($AJ$9,$B$12:$M$17,2) -> 38 | AA13: PRI1: | AB13: =LARGE(A13:A17,COUNTIF(A13:A17,">" &$AJ$6)+1) ->  | AC13: =VLOOKUP(AB13,X13:Z17,2) ->  | AD13: =VLOOKUP(AB13,X13:Z17,3) ->  | AE13: PRO1: | AF13: =IF(AC13=AD13,AC13, FORECAST($AJ$7,AC13:AD13,$AJ$8:$AJ$9)) -> 
A14: 100 | B14: 72 | C14: 66 | D14: 65 | E14: 62 | F14: 60 | G14: 56 | H14: 48 | I14: 36 | J14: 24 | P14: =A14 -> 100 | Q14: =B14 -> 72 | R14: =AVERAGE(C14:G14) -> 61.8 | S14: =AVERAGE(G14:I14) -> 46.66666667 | T14: =AVERAGE(I14:K14) -> 30 | X14: =A14 -> 100 | Y14: =HLOOKUP($AJ$8,$B$12:$M$17,3) -> 72 | Z14: =HLOOKUP($AJ$9,$B$12:$M$17,3) -> 72 | AA14: PRI2: | AB14: =SMALL(A13:A17,COUNTIF(A13:A17,"<"&$AJ$6)+1) -> 50 | AC14: =VLOOKUP(AB14,X13:Z17,2) -> 38 | AD14: =VLOOKUP(AB14,X13:Z17,3) -> 38 | AE14: PRO2: | AF14: =IF(AC14=AD14, AC14, FORECAST($AJ$7,AC14:AD14,$AJ$8:$AJ$9)) -> 38
A15: 150 | B15: 112 | C15: 103 | D15: 97 | E15: 99 | F15: 95 | G15: 93 | H15: 83 | I15: 73 | J15: 62 | K15: 46 | P15: =A15 -> 150 | Q15: 112 | R15: =AVERAGE(C15:G15) -> 97.4 | S15: 83 | T15: 60.33333333 | U15: =AVERAGE(K15:M15) -> 46 | X15: =A15 -> 150 | Y15: =HLOOKUP($AJ$8,$B$12:$M$17,4) -> 112 | Z15: =HLOOKUP($AJ$9,$B$12:$M$17,4) -> 112 | AA15: PSI1: | AB15: =LARGE(A13:A17,COUNTIF(A13:A17,">" &$AJ$5)+1) ->  | AE15: PSO1: | AF15: =VLOOKUP(AB15,A13:B17,2) -> 
A16: 200 | B16: 150 | C16: 136 | D16: 132 | E16: 131 | F16: 131 | G16: 128 | H16: 120 | I16: 110 | J16: 98 | K16: 85 | L16: 65 | M16: 36 | P16: =A16 -> 200 | Q16: 150 | R16: 131.6 | S16: 119.3333333 | T16: 97.66666667 | U16: 62 | X16: =A16 -> 200 | Y16: =HLOOKUP($AJ$8,$B$12:$M$17,5) -> 150 | Z16: =HLOOKUP($AJ$9,$B$12:$M$17,5) -> 150 | AA16: PSI2: | AB16: =SMALL(A13:A17,COUNTIF(A13:A17,"<"&$AJ$5)+1) -> 50 | AE16: PSO2: | AF16: =VLOOKUP(AB16,A13:B17,2) -> 38
A17: 220 | B17: 165 | C17: 151 | D17: 147 | E17: 145 | F17: 144 | G17: 144 | H17: 135 | I17: 125 | J17: 114 | K17: 100 | L17: 83 | M17: 60 | P17: =A17 -> 220 | Q17: 165 | R17: 146.2 | S17: =AVERAGE(G17:I17) -> 134.6666667 | T17: 113 | U17: 81 | X17: =A17 -> 220 | Y17: =HLOOKUP($AJ$8,$B$12:$M$17,6) -> 165 | Z17: =HLOOKUP($AJ$9,$B$12:$M$17,6) -> 165
A19: Type 2 | B19: Outlet Pressures @ Flow Rate, GPM | O19: Type 2 | P19: Inlet vs. Outlet Pressure Over Flow Range | W19: Type 2
A20: Inlet Pressure (psig) | B20: 0 | C20: 50 | D20: 100 | E20: 150 | F20: 175 | G20: 200 | H20: 250 | I20: 300 | J20: 350 | K20: 400 | L20: 450 | M20: 500 | Q20: Static | R20: 50-200 [GPM] | S20: 200-300 [GPM] | T20: 300-400 [GPM] | U20: 400-500 [GPM] | Y20: =CONCATENATE("Outlet Residual @ " &AJ$8& " GPM") -> Outlet Residual @ 0 GPM | Z20: =CONCATENATE("Outlet Residual @ " &AJ$9& " GPM") -> Outlet Residual @ 0 GPM | AC20: Const. PRI Interpolated @ Var. Flow
A21: 50 | B21: 39 | C21: 22 | D21: 22 | E21: 21 | F21: 19 | G21: 17 | O21: Inlet Pressure (psig) | P21: =A21 -> 50 | Q21: =B21 -> 39 | R21: =AVERAGE(C21:G21) -> 20.2 | S21: =AVERAGE(G21:I21) -> 17 | W21: Inlet Pressure (psig) | X21: =A21 -> 50 | Y21: =HLOOKUP($AJ$8,$B$20:$M$25,2) -> 39 | Z21: =HLOOKUP($AJ$9,$B$20:$M$25,2) -> 39 | AA21: PRI1: | AB21: =LARGE(A21:A25,COUNTIF(A21:A25,">" &$AJ$6)+1) ->  | AC21: =VLOOKUP(AB21,X21:Z25,2) ->  | AD21: =VLOOKUP(AB21,X21:Z25,3) ->  | AE21: PRO1: | AF21: =IF(AC21=AD21,AC21, FORECAST($AJ$7,AC21:AD21,$AJ$8:$AJ$9)) -> 
A22: 100 | B22: 65 | C22: 61 | D22: 60 | E22: 57 | F22: 55 | G22: 51 | H22: 45 | I22: 35 | J22: 18 | P22: =A22 -> 100 | Q22: =B22 -> 65 | R22: =AVERAGE(C22:G22) -> 56.8 | S22: =AVERAGE(G22:I22) -> 43.66666667 | T22: =AVERAGE(I22:K22) -> 26.5 | X22: =A22 -> 100 | Y22: =HLOOKUP($AJ$8,$B$20:$M$25,3) -> 65 | Z22: =HLOOKUP($AJ$9,$B$20:$M$25,3) -> 65 | AA22: PRI2: | AB22: =SMALL(A21:A25,COUNTIF(A21:A25,"<"&$AJ$6)+1) -> 50 | AC22: =VLOOKUP(AB22,X21:Z25,2) -> 39 | AD22: =VLOOKUP(AB22,X21:Z25,3) -> 39 | AE22: PRO2: | AF22: =IF(AC22=AD22, AC22, FORECAST($AJ$7,AC22:AD22,$AJ$8:$AJ$9)) -> 39
A23: 150 | B23: 106 | C23: 91 | D23: 91 | E23: 92 | F23: 92 | G23: 89 | H23: 84 | I23: 70 | J23: 61 | K23: 43 | P23: =A23 -> 150 | Q23: 106 | R23: =AVERAGE(C23:G23) -> 91 | S23: 81 | T23: =AVERAGE(I23:K23) -> 58 | U23: =AVERAGE(K23:M23) -> 43 | X23: =A23 -> 150 | Y23: =HLOOKUP($AJ$8,$B$20:$M$25,4) -> 106 | Z23: =HLOOKUP($AJ$9,$B$20:$M$25,4) -> 106 | AA23: PSI1: | AB23: =LARGE(A21:A25,COUNTIF(A21:A25,">" &$AJ$5)+1) ->  | AE23: PSO1: | AF23: =VLOOKUP(AB23,A21:B25,2) -> 
A24: 200 | B24: 142 | C24: 132 | D24: 123 | E24: 127 | F24: 126 | G24: 123 | H24: 116 | I24: 106 | J24: 95 | K24: 81 | L24: 63 | M24: 0 | P24: =A24 -> 200 | Q24: 142 | R24: 126.2 | S24: 115 | T24: 94 | U24: 48 | X24: =A24 -> 200 | Y24: =HLOOKUP($AJ$8,$B$20:$M$25,5) -> 142 | Z24: =HLOOKUP($AJ$9,$B$20:$M$25,5) -> 142 | AA24: PSI2: | AB24: =SMALL(A21:A25,COUNTIF(A21:A25,"<"&$AJ$5)+1) -> 50 | AE24: PSO2: | AF24: =VLOOKUP(AB24,A21:B25,2) -> 39
A25: 230 | B25: 166 | C25: 149 | D25: 143 | E25: 146 | F25: 147 | G25: 147 | H25: 137 | I25: 128 | J25: 117 | K25: 105 | L25: 86 | M25: 55 | P25: =A25 -> 230 | Q25: 166 | R25: 146.4 | S25: 137.3333333 | T25: =AVERAGE(I25:K25) -> 116.6666667 | U25: 82 | X25: =A25 -> 230 | Y25: =HLOOKUP($AJ$8,$B$20:$M$25,6) -> 166 | Z25: =HLOOKUP($AJ$9,$B$20:$M$25,6) -> 166
A27: Type 3 | B27: Outlet Pressures @ Flow Rate, GPM | O27: Type 3 | P27: Inlet vs. Outlet Pressure Over Flow Range | W27: Type 3
A28: Inlet Pressure (psig) | B28: 0 | C28: 50 | D28: 100 | E28: 150 | F28: 175 | G28: 200 | H28: 250 | I28: 300 | J28: 350 | K28: 400 | L28: 450 | M28: 500 | Q28: Static | R28: 50-200 [GPM] | S28: 200-300 [GPM] | T28: 300-400 [GPM] | U28: 400-500 [GPM] | Y28: =CONCATENATE("Outlet Residual @ " &AJ$8& " GPM") -> Outlet Residual @ 0 GPM | Z28: =CONCATENATE("Outlet Residual @ " &AJ$9& " GPM") -> Outlet Residual @ 0 GPM | AC28: Const. PRI Interpolated @ Var. Flow | AH28: 2.5" Inline | AI28: Calculated Static Outlet Pressure | AJ28: Calculated Residual Outlet Pressure | AK28: Max Flow Rate
A29: 50 | B29: 33 | C29: 27 | D29: 27 | E29: 21 | F29: 19 | G29: 16 | O29: Inlet Pressure (psig) | P29: =A29 -> 50 | Q29: =B29 -> 33 | R29: =AVERAGE(C29:G29) -> 22 | S29: =AVERAGE(G29:I29) -> 16 | W29: Inlet Pressure (psig) | X29: =A29 -> 50 | Y29: =HLOOKUP($AJ$8,$B$28:$M$34,2) -> 33 | Z29: =HLOOKUP($AJ$9,$B$28:$M$34,2) -> 33 | AA29: PRI1: | AB29: =LARGE(A29:A34,COUNTIF(A29:A34,">" &$AJ$6)+1) ->  | AC29: =VLOOKUP(AB29,X29:Z34,2) ->  | AD29: =VLOOKUP(AB29,X29:Z34,3) ->  | AE29: PRO1: | AF29: =IF(AC29=AD29,AC29, FORECAST($AJ$7,AC29:AD29,$AJ$8:$AJ$9)) ->  | AH29: Type 0 | AI29: =IF(AF7=AF8,AF7,FORECAST($AJ$5,AF7:AF8,AB7:AB8)) ->  | AJ29: =IF(AF5=AF6,AF5,FORECAST($AJ$6,AF5:AF6,AB5:AB6)) ->  | AK29: 500
A30: 100 | B30: 66 | C30: 54 | D30: 54 | E30: 51 | F30: 49 | G30: 46 | H30: 39 | I30: 28 | P30: =A30 -> 100 | Q30: =B30 -> 66 | R30: =AVERAGE(C30:G30) -> 50.8 | S30: =AVERAGE(G30:I30) -> 37.66666667 | T30: =AVERAGE(I30:K30) -> 28 | X30: 100 | Y30: =HLOOKUP($AJ$8,$B$28:$M$34,3) -> 66 | Z30: =HLOOKUP($AJ$9,$B$28:$M$34,3) -> 66 | AA30: PRI2: | AB30: =SMALL(A29:A34,COUNTIF(A29:A34,"<"&$AJ$6)+1) -> 50 | AC30: =VLOOKUP(AB30,X29:Z34,2) -> 33 | AD30: =VLOOKUP(AB30,X29:Z34,3) -> 33 | AE30: PRO2: | AF30: =IF(AC30=AD30, AC30, FORECAST($AJ$7,AC30:AD30,$AJ$8:$AJ$9)) -> 33 | AH30: Type 1 | AI30: =IF(AF15=AF16,AF15,FORECAST($AJ$5,AF15:AF16,AB15:AB16)) ->  | AJ30: =IF(AB13=AB14,AF13,FORECAST($AJ$6,AF13:AF14,AB13:AB14)) ->  | AK30: 500
A31: 150 | B31: 98 | C31: 80 | D31: 81 | E31: 82 | F31: 80 | G31: 77 | H31: 69 | I31: 61 | J31: 48 | K31: 32 | P31: =A31 -> 150 | Q31: 98 | R31: =AVERAGE(C31:G31) -> 80 | S31: 69 | T31: 47 | U31: =AVERAGE(K31:M31) -> 32 | X31: 150 | Y31: =HLOOKUP($AJ$8,$B$28:$M$34,4) -> 98 | Z31: =HLOOKUP($AJ$9,$B$28:$M$34,4) -> 98 | AA31: PSI1: | AB31: =LARGE(A29:A34,COUNTIF(A29:A34,">" &$AJ$5)+1) ->  | AE31: PSO1: | AF31: =VLOOKUP(AB31,A29:B33,2) ->  | AH31: Type 2 | AI31: =IF(AF23=AF24,AF23,FORECAST($AJ$5,AF23:AF24,AB23:AB24)) ->  | AJ31: =IF(AB21=AB22,AF21,FORECAST($AJ$6,AF21:AF22,AB21:AB22)) ->  | AK31: 500
A32: 200 | B32: 130 | C32: 110 | D32: 106 | E32: 108 | F32: 109 | G32: 107 | H32: 100 | I32: 91 | J32: 81 | K32: 66 | L32: 43 | P32: =A32 -> 200 | Q32: 130 | R32: 108 | S32: 99.33333333 | T32: 79.33333333 | U32: 54.5 | X32: 200 | Y32: =HLOOKUP($AJ$8,$B$28:$M$34,5) -> 130 | Z32: =HLOOKUP($AJ$9,$B$28:$M$34,5) -> 130 | AA32: PSI2: | AB32: =SMALL(A29:A34,COUNTIF(A29:A34,"<"&$AJ$5)+1) -> 50 | AE32: PSO2: | AF32: =VLOOKUP(AB32,A29:B33,2) -> 33 | AH32: Type 3 | AI32: =IF(AF31=AF32,AF31,FORECAST($AJ$5,AF31:AF32,AB31:AB32)) ->  | AJ32: =IF(AB29=AB30,AF29,FORECAST($AJ$6,AF29:AF30,AB29:AB30)) ->  | AK32: 500
A33: 250 | B33: 161 | C33: 141 | D33: 134 | E33: 131 | F33: 134 | G33: 134 | H33: 139 | I33: 122 | J33: 111 | K33: 98 | L33: 82 | M33: 55 | P33: =A33 -> 250 | Q33: 161 | R33: 134.8 | S33: 131.6666667 | T33: 110.3333333 | U33: 78.33333333 | X33: 250 | Y33: =HLOOKUP($AJ$8,$B$28:$M$34,6) -> 161 | Z33: =HLOOKUP($AJ$9,$B$28:$M$34,6) -> 161 | AH33: Type 4 | AI33: =IF(AF40=AF41,AF40,FORECAST($AJ$5,AF40:AF41,AB40:AB41)) ->  | AJ33: =IF(AB38=AB39,AF38,FORECAST($AJ$6,AF38:AF39,AB38:AB39)) ->  | AK33: 500
A34: 265 | B34: 173 | C34: 153 | D34: 143 | E34: 140 | F34: 139 | G34: 143 | H34: 138 | I34: 130 | J34: 120 | K34: 106 | L34: 93 | M34: 70 | P34: =A34 -> 265 | Q34: =B34 -> 173 | R34: =AVERAGE(C34:G34) -> 143.6 | S34: =AVERAGE(G34:I34) -> 137 | T34: =AVERAGE(I34:K34) -> 118.6666667 | U34: =AVERAGE(K34:M34) -> 89.66666667 | X34: 265 | Y34: =HLOOKUP($AJ$8,$B$28:$M$34,7) -> 173 | Z34: =HLOOKUP($AJ$9,$B$28:$M$34,7) -> 173 | AH34: Type 5 | AI34: =IF(AF49=AF50,AF49,FORECAST($AJ$5,AF49:AF50,AB49:AB50)) ->  | AJ34: =IF(AB47=AB48,AF47,FORECAST($AJ$6,AF47:AF48,AB47:AB48)) ->  | AK34: 500
AH35: Type 6 | AI35: =IF(AF59=AF60,AF59,FORECAST($AJ$5,AF59:AF60,AB59:AB60)) ->  | AJ35: =IF(AB57=AB58,AF57,FORECAST($AJ$6,AF57:AF58,AB57:AB58)) ->  | AK35: 500
A36: Type 4 | B36: Outlet Pressures @ Flow Rate, GPM | O36: Type 4 | P36: Inlet vs. Outlet Pressure Over Flow Range | W36: Type 4 | AH36: Type 7 | AI36: =IF(AF70=AF71,AF70,FORECAST($AJ$5,AF70:AF71,AB70:AB71)) ->  | AJ36: =IF(AB68=AB69,AF68,FORECAST($AJ$6,AF68:AF69,AB68:AB69)) ->  | AK36: 500
A37: Inlet Pressure (psig) | B37: 0 | C37: 50 | D37: 100 | E37: 150 | F37: 175 | G37: 200 | H37: 250 | I37: 300 | J37: 350 | K37: 400 | L37: 450 | M37: 500 | Q37: Static | R37: 50-200 [GPM] | S37: 200-300 [GPM] | T37: 300-400 [GPM] | U37: 400-500 [GPM] | Y37: =CONCATENATE("Outlet Residual @ " &AJ$8& " GPM") -> Outlet Residual @ 0 GPM | Z37: =CONCATENATE("Outlet Residual @ " &AJ$9& " GPM") -> Outlet Residual @ 0 GPM | AC37: Const. PRI Interpolated @ Var. Flow
A38: 50 | B38: 26 | C38: 21 | D38: 21 | E38: 17 | F38: 16 | G38: 12 | O38: Inlet Pressure (psig) | P38: =A38 -> 50 | Q38: =B38 -> 26 | R38: =AVERAGE(C38:G38) -> 17.4 | S38: =AVERAGE(G38:I38) -> 12 | W38: Inlet Pressure (psig) | X38: =A38 -> 50 | Y38: =HLOOKUP($AJ$8,$B$37:$M$43,2) -> 26 | Z38: =HLOOKUP($AJ$9,$B$37:$M$43,2) -> 26 | AA38: PRI1: | AB38: =LARGE(A38:A43,COUNTIF(A38:A43,">" &$AJ$6)+1) ->  | AC38: =VLOOKUP(AB38,X38:Z43,2) ->  | AD38: =VLOOKUP(AB38,X38:Z43,3) ->  | AE38: PRO1: | AF38: =IF(AC38=AD38,AC38, FORECAST($AJ$7,AC38:AD38,$AJ$8:$AJ$9)) -> 
A39: 100 | B39: 54 | C39: 44 | D39: 45 | E39: 44 | F39: 41 | G39: 38 | H39: 31 | I39: 18 | P39: =A39 -> 100 | Q39: =B39 -> 54 | R39: =AVERAGE(C39:G39) -> 42.4 | S39: =AVERAGE(G39:I39) -> 29 | T39: =AVERAGE(I39:K39) -> 18 | X39: 100 | Y39: =HLOOKUP($AJ$8,$B$37:$M$43,3) -> 54 | Z39: =HLOOKUP($AJ$9,$B$37:$M$43,3) -> 54 | AA39: PRI2: | AB39: =SMALL(A38:A43,COUNTIF(A38:A43,"<"&$AJ$6)+1) -> 50 | AC39: =VLOOKUP(AB39,X38:Z43,2) -> 26 | AD39: =VLOOKUP(AB39,X38:Z43,3) -> 26 | AE39: PRO2: | AF39: =IF(AC39=AD39, AC39, FORECAST($AJ$7,AC39:AD39,$AJ$8:$AJ$9)) -> 26
A40: 150 | B40: 83 | C40: 66 | D40: 65 | E40: 69 | F40: 67 | G40: 65 | H40: 57 | I40: 48 | J40: 33 | P40: =A40 -> 150 | Q40: 83 | R40: =AVERAGE(C40:G40) -> 66.4 | S40: 56.66666667 | T40: 40.5 | X40: 150 | Y40: =HLOOKUP($AJ$8,$B$37:$M$43,4) -> 83 | Z40: =HLOOKUP($AJ$9,$B$37:$M$43,4) -> 83 | AA40: PSI1: | AB40: =LARGE(A38:A43,COUNTIF(A38:A43,">" &$AJ$5)+1) ->  | AE40: PSO1: | AF40: =VLOOKUP(AB40,A38:B43,2) -> 
A41: 200 | B41: 111 | C41: 96 | D41: 88 | E41: 89 | F41: 90 | G41: 89 | H41: 83 | I41: 74 | J41: 63 | K41: 48 | P41: =A41 -> 200 | Q41: 111 | R41: 90.4 | S41: 82 | T41: =AVERAGE(I41:K41) -> 61.66666667 | U41: =AVERAGE(K41:M41) -> 48 | X41: 200 | Y41: =HLOOKUP($AJ$8,$B$37:$M$43,5) -> 111 | Z41: =HLOOKUP($AJ$9,$B$37:$M$43,5) -> 111 | AA41: PSI2: | AB41: =SMALL(A38:A43,COUNTIF(A38:A43,"<"&$AJ$5)+1) -> 50 | AE41: PSO2: | AF41: =VLOOKUP(AB41,A38:B43,2) -> 26
A42: 250 | B42: 142 | C42: 125 | D42: 113 | E42: 108 | F42: 109 | G42: 111 | H42: 107 | I42: 101 | J42: 90 | K42: 76 | L42: 59 | P42: =A42 -> 250 | Q42: 142 | R42: 113.2 | S42: 106.3333333 | T42: 89 | U42: =AVERAGE(K42:M42) -> 67.5 | X42: 250 | Y42: =HLOOKUP($AJ$8,$B$37:$M$43,6) -> 142 | Z42: =HLOOKUP($AJ$9,$B$37:$M$43,6) -> 142
A43: 300 | B43: 169 | C43: 152 | D43: 143 | E43: 135 | F43: 130 | G43: 127 | H43: 131 | I43: 125 | J43: 114 | K43: 103 | L43: 86 | M43: 65 | P43: =A43 -> 300 | Q43: =B43 -> 169 | R43: =AVERAGE(C43:G43) -> 137.4 | S43: =AVERAGE(G43:I43) -> 127.6666667 | T43: =AVERAGE(I43:K43) -> 114 | U43: =AVERAGE(K43:M43) -> 84.66666667 | X43: 300 | Y43: =HLOOKUP($AJ$8,$B$37:$M$43,7) -> 169 | Z43: =HLOOKUP($AJ$9,$B$37:$M$43,7) -> 169
A45: Type 5 | B45: Outlet Pressures @ Flow Rate, GPM | O45: Type 5 | P45: Inlet vs. Outlet Pressure Over Flow Range | W45: Type 5
A46: Inlet Pressure (psig) | B46: 0 | C46: 50 | D46: 100 | E46: 150 | F46: 175 | G46: 200 | H46: 250 | I46: 300 | J46: 350 | K46: 400 | L46: 450 | M46: 500 | Q46: Static | R46: 50-200 [GPM] | S46: 200-300 [GPM] | T46: 300-400 [GPM] | U46: 400-500 [GPM] | Y46: =CONCATENATE("Outlet Residual @ " &AJ$8& " GPM") -> Outlet Residual @ 0 GPM | Z46: =CONCATENATE("Outlet Residual @ " &AJ$9& " GPM") -> Outlet Residual @ 0 GPM | AC46: Const. PRI Interpolated @ Var. Flow
A47: 50 | B47: 32 | C47: 19 | D47: 18 | E47: 16 | F47: 13 | G47: 11 | O47: Inlet Pressure (psig) | P47: =A47 -> 50 | Q47: =B47 -> 32 | R47: =AVERAGE(C47:G47) -> 15.4 | S47: =AVERAGE(G47:I47) -> 11 | W47: Inlet Pressure (psig) | X47: =A47 -> 50 | Y47: =HLOOKUP($AJ$8,$B$46:$M$53,2) -> 32 | Z47: =HLOOKUP($AJ$9,$B$46:$M$53,2) -> 32 | AA47: PRI1: | AB47: =LARGE(A47:A53,COUNTIF(A47:A53,">" &$AJ$6)+1) ->  | AC47: =VLOOKUP(AB47,X47:Z52,2) ->  | AD47: =VLOOKUP(AB47,X47:Z52,3) ->  | AE47: PRO1: | AF47: =IF(AC47=AD47,AC47, FORECAST($AJ$7,AC47:AD47,$AJ$8:$AJ$9)) -> 
A48: 100 | B48: 52 | C48: 40 | D48: 41 | E48: 40 | F48: 38 | G48: 36 | H48: 28 | I48: 17 | P48: =A48 -> 100 | Q48: =B48 -> 52 | R48: =AVERAGE(C48:G48) -> 39 | S48: =AVERAGE(G48:I48) -> 27 | T48: =AVERAGE(I48:K48) -> 17 | X48: 100 | Y48: =HLOOKUP($AJ$8,$B$46:$M$53,3) -> 52 | Z48: =HLOOKUP($AJ$9,$B$46:$M$53,3) -> 52 | AA48: PRI2: | AB48: =SMALL(A47:A53,COUNTIF(A47:A53,"<"&$AJ$6)+1) -> 50 | AC48: =VLOOKUP(AB48,X47:Z52,2) -> 32 | AD48: =VLOOKUP(AB48,X47:Z52,3) -> 32 | AE48: PRO2: | AF48: =IF(AC48=AD48, AC48, FORECAST($AJ$7,AC48:AD48,$AJ$8:$AJ$9)) -> 32
A49: 150 | B49: 77 | C49: 62 | D49: 60 | E49: 61 | F49: 60 | G49: 58 | H49: 53 | I49: 43 | J49: 29 | P49: =A49 -> 150 | Q49: 77 | R49: =AVERAGE(C49:G49) -> 60.2 | S49: 51.33333333 | T49: 36 | X49: 150 | Y49: =HLOOKUP($AJ$8,$B$46:$M$53,4) -> 77 | Z49: =HLOOKUP($AJ$9,$B$46:$M$53,4) -> 77 | AA49: PSI1: | AB49: =LARGE(A47:A53,COUNTIF(A47:A53,">" &$AJ$5)+1) ->  | AE49: PSO1: | AF49: =VLOOKUP(AB49,A47:B53,2) -> 
A50: 200 | B50: 103 | C50: 89 | D50: 80 | E50: 81 | F50: 82 | G50: 80 | H50: 76 | I50: 68 | J50: 55 | K50: 42 | P50: =A50 -> 200 | Q50: 103 | R50: 82.4 | S50: 74.66666667 | T50: 55 | U50: =AVERAGE(K50:M50) -> 42 | X50: 200 | Y50: =HLOOKUP($AJ$8,$B$46:$M$53,5) -> 103 | Z50: =HLOOKUP($AJ$9,$B$46:$M$53,5) -> 103 | AA50: PSI2: | AB50: =SMALL(A47:A53,COUNTIF(A47:A53,"<"&$AJ$5)+1) -> 50 | AE50: PSO2: | AF50: =VLOOKUP(AB50,A47:B53,2) -> 32
A51: 250 | B51: 132 | C51: 114 | D51: 104 | E51: 100 | F51: 98 | G51: 100 | H51: 98 | I51: 91 | J51: 83 | K51: 65 | L51: 44 | P51: =A51 -> 250 | Q51: 132 | R51: 103.2 | S51: 96.33333333 | T51: 79.66666667 | U51: 54.5 | X51: 250 | Y51: =HLOOKUP($AJ$8,$B$46:$M$53,6) -> 132 | Z51: =HLOOKUP($AJ$9,$B$46:$M$53,6) -> 132
A52: 300 | B52: 156 | C52: 142 | D52: 134 | E52: 124 | F52: 122 | G52: 119 | H52: 115 | I52: 113 | J52: 105 | K52: 92 | L52: 77 | M52: 37 | P52: =A52 -> 300 | Q52: =B52 -> 156 | R52: =AVERAGE(C52:G52) -> 128.2 | S52: =AVERAGE(G52:I52) -> 115.6666667 | T52: =AVERAGE(I52:K52) -> 103.3333333 | U52: =AVERAGE(K52:M52) -> 68.66666667 | X52: 300 | Y52: =HLOOKUP($AJ$8,$B$46:$M$53,7) -> 156 | Z52: =HLOOKUP($AJ$9,$B$46:$M$53,7) -> 156
A53: 320 | B53: 164 | C53: 155 | D53: 146 | E53: 137 | F53: 132 | G53: 126 | H53: 119 | I53: 120 | J53: 113 | K53: 102 | L53: 85 | M53: 62 | P53: 320 | Q53: 164 | R53: 139.2 | S53: 121.6666667 | T53: 111.6666667 | U53: 83 | X53: 320 | Y53: =HLOOKUP($AJ$8,$B$46:$M$53,8) -> 164 | Z53: =HLOOKUP($AJ$9,$B$46:$M$53,8) -> 164
A55: Type 6 | B55: Outlet Pressures @ Flow Rate, GPM | O55: Type 6 | P55: Inlet vs. Outlet Pressure Over Flow Range | W55: Type 6
A56: Inlet Pressure (psig) | B56: 0 | C56: 50 | D56: 100 | E56: 150 | F56: 175 | G56: 200 | H56: 250 | I56: 300 | J56: 350 | K56: 400 | L56: 450 | M56: 500 | Q56: Static | R56: 50-200 [GPM] | S56: 200-300 [GPM] | T56: 300-400 [GPM] | U56: 400-500 [GPM] | Y56: =CONCATENATE("Outlet Residual @ " &AJ$8& " GPM") -> Outlet Residual @ 0 GPM | Z56: =CONCATENATE("Outlet Residual @ " &AJ$9& " GPM") -> Outlet Residual @ 0 GPM | AC56: Const. PRI Interpolated @ Var. Flow
A57: 50 | B57: 23 | C57: 20 | D57: 17 | E57: 15 | F57: 14 | G57: 12 | O57: Inlet Pressure (psig) | P57: =A57 -> 50 | Q57: =B57 -> 23 | R57: =AVERAGE(C57:G57) -> 15.6 | S57: =AVERAGE(G57:I57) -> 12 | W57: Inlet Pressure (psig) | X57: =A57 -> 50 | Y57: =HLOOKUP($AJ$8,$B$56:$M$64,2) -> 23 | Z57: =HLOOKUP($AJ$9,$B$56:$M$64,2) -> 23 | AA57: PRI1: | AB57: =LARGE(A57:A64,COUNTIF(A57:A64,">" &$AJ$6)+1) ->  | AC57: =VLOOKUP(AB57,X57:Z62,2) ->  | AD57: =VLOOKUP(AB57,X57:Z62,3) ->  | AE57: PRO1: | AF57: =IF(AC57=AD57,AC57, FORECAST($AJ$7,AC57:AD57,$AJ$8:$AJ$9)) -> 
A58: 100 | B58: 45 | C58: 40 | D58: 39 | E58: 35 | F58: 33 | G58: 32 | H58: 30 | I58: 23 | P58: =A58 -> 100 | Q58: =B58 -> 45 | R58: =AVERAGE(C58:G58) -> 35.8 | S58: =AVERAGE(G58:I58) -> 28.33333333 | T58: =AVERAGE(I58:K58) -> 23 | X58: 100 | Y58: =HLOOKUP($AJ$8,$B$56:$M$64,3) -> 45 | Z58: =HLOOKUP($AJ$9,$B$56:$M$64,3) -> 45 | AA58: PRI2: | AB58: =SMALL(A57:A64,COUNTIF(A57:A64,"<"&$AJ$6)+1) -> 50 | AC58: =VLOOKUP(AB58,X57:Z62,2) -> 23 | AD58: =VLOOKUP(AB58,X57:Z62,3) -> 23 | AE58: PRO2: | AF58: =IF(AC58=AD58, AC58, FORECAST($AJ$7,AC58:AD58,$AJ$8:$AJ$9)) -> 23
A59: 150 | B59: 68 | C59: 61 | D59: 59 | E59: 56 | F59: 56 | G59: 52 | H59: 49 | I59: 46 | J59: 37 | K59: 28 | P59: =A59 -> 150 | Q59: 68 | R59: =AVERAGE(C59:G59) -> 56.8 | S59: 49 | T59: 37 | U59: =AVERAGE(K59:M59) -> 28 | X59: 150 | Y59: =HLOOKUP($AJ$8,$B$56:$M$64,4) -> 68 | Z59: =HLOOKUP($AJ$9,$B$56:$M$64,4) -> 68 | AA59: PSI1: | AB59: =LARGE(A57:A64,COUNTIF(A57:A64,">" &$AJ$5)+1) ->  | AE59: PSO1: | AF59: =VLOOKUP(AB59,A57:B64,2) -> 
A60: 200 | B60: 91 | C60: 85 | D60: 80 | E60: 78 | F60: 74 | G60: 73 | H60: 67 | I60: 64 | J60: 62 | K60: 49 | L60: 38 | P60: =A60 -> 200 | Q60: 91 | R60: 78 | S60: 68 | T60: 58.33333333 | U60: 43.5 | X60: 200 | Y60: =HLOOKUP($AJ$8,$B$56:$M$64,5) -> 91 | Z60: =HLOOKUP($AJ$9,$B$56:$M$64,5) -> 91 | AA60: PSI2: | AB60: =SMALL(A57:A64,COUNTIF(A57:A64,"<"&$AJ$5)+1) -> 50 | AE60: PSO2: | AF60: =VLOOKUP(AB60,A57:B64,2) -> 23
A61: 250 | B61: 117 | C61: 105 | D61: 101 | E61: 98 | F61: 96 | G61: 94 | H61: 86 | I61: 82 | J61: 80 | K61: 74 | L61: 61 | M61: 48 | P61: =A61 -> 250 | Q61: 117 | R61: 98.8 | S61: 87.33333333 | T61: 78.66666667 | U61: 61 | X61: 250 | Y61: =HLOOKUP($AJ$8,$B$56:$M$64,6) -> 117 | Z61: =HLOOKUP($AJ$9,$B$56:$M$64,6) -> 117
A62: 300 | B62: 140 | C62: 131 | D62: 125 | E62: 120 | F62: 116 | G62: 118 | H62: 110 | I62: 102 | J62: 95 | K62: 91 | L62: 85 | M62: 69 | P62: =A62 -> 300 | Q62: =B62 -> 140 | R62: =AVERAGE(C62:G62) -> 122 | S62: =AVERAGE(G62:I62) -> 110 | T62: =AVERAGE(I62:K62) -> 96 | U62: =AVERAGE(K62:M62) -> 81.66666667 | X62: 300 | Y62: =HLOOKUP($AJ$8,$B$56:$M$64,7) -> 140 | Z62: =HLOOKUP($AJ$9,$B$56:$M$64,7) -> 140
A63: 350 | B63: 161 | C63: 154 | D63: 148 | E63: 142 | F63: 140 | G63: 138 | H63: 132 | I63: 125 | J63: 115 | K63: 110 | L63: 103 | M63: 94 | P63: 350 | Q63: 161 | R63: 144.4 | S63: 131.6666667 | T63: 116.6666667 | U63: 102.3333333 | X63: 350 | Y63: =HLOOKUP($AJ$8,$B$56:$M$64,8) -> 161 | Z63: =HLOOKUP($AJ$9,$B$56:$M$64,8) -> 161
A64: 360 | B64: 168 | C64: 160 | D64: 155 | E64: 149 | F64: 146 | G64: 144 | H64: 136 | I64: 131 | J64: 123 | K64: 115 | L64: 108 | M64: 95 | P64: 360 | Q64: 168 | R64: 150.8 | S64: 137 | T64: 123 | U64: 106 | X64: 360 | Y64: =HLOOKUP($AJ$8,$B$56:$M$64,9) -> 168 | Z64: =HLOOKUP($AJ$9,$B$56:$M$64,9) -> 168
A66: Type 7 | B66: Outlet Pressures @ Flow Rate, GPM | O66: Type 7 | P66: Inlet vs. Outlet Pressure Over Flow Range | W66: Type 7
A67: Inlet Pressure (psig) | B67: 0 | C67: 50 | D67: 100 | E67: 150 | F67: 175 | G67: 200 | H67: 250 | I67: 300 | J67: 350 | K67: 400 | L67: 450 | M67: 500 | Q67: Static | R67: 50-200 [GPM] | S67: 200-300 [GPM] | T67: 300-400 [GPM] | U67: 400-500 [GPM] | Y67: =CONCATENATE("Outlet Residual @ " &AJ$8& " GPM") -> Outlet Residual @ 0 GPM | Z67: =CONCATENATE("Outlet Residual @ " &AJ$9& " GPM") -> Outlet Residual @ 0 GPM | AC67: Const. PRI Interpolated @ Var. Flow
A68: 50 | B68: 22 | C68: 18 | D68: 16 | E68: 14 | F68: 13 | G68: 11 | O68: Inlet Pressure (psig) | P68: =A68 -> 50 | Q68: =B68 -> 22 | R68: =AVERAGE(C68:G68) -> 14.4 | S68: =AVERAGE(G68:I68) -> 11 | W68: Inlet Pressure (psig) | X68: =A68 -> 50 | Y68: =HLOOKUP($AJ$8,$B$67:$M$75,2) -> 22 | Z68: =HLOOKUP($AJ$9,$B$67:$M$75,2) -> 22 | AA68: PRI1: | AB68: =LARGE(A68:A75,COUNTIF(A68:A75,">" &$AJ$6)+1) ->  | AC68: =VLOOKUP(AB68,X68:Z73,2) ->  | AD68: =VLOOKUP(AB68,X68:Z73,3) ->  | AE68: PRO1: | AF68: =IF(AC68=AD68,AC68, FORECAST($AJ$7,AC68:AD68,$AJ$8:$AJ$9)) -> 
A69: 100 | B69: 43 | C69: 38 | D69: 36 | E69: 32 | F69: 30 | G69: 28 | H69: 25 | I69: 18 | P69: =A69 -> 100 | Q69: =B69 -> 43 | R69: =AVERAGE(C69:G69) -> 32.8 | S69: =AVERAGE(G69:I69) -> 23.66666667 | T69: =AVERAGE(I69:K69) -> 18 | X69: 100 | Y69: =HLOOKUP($AJ$8,$B$67:$M$75,3) -> 43 | Z69: =HLOOKUP($AJ$9,$B$67:$M$75,3) -> 43 | AA69: PRI2: | AB69: =SMALL(A68:A75,COUNTIF(A68:A75,"<"&$AJ$6)+1) -> 50 | AC69: =VLOOKUP(AB69,X68:Z73,2) -> 22 | AD69: =VLOOKUP(AB69,X68:Z73,3) -> 22 | AE69: PRO2: | AF69: =IF(AC69=AD69, AC69, FORECAST($AJ$7,AC69:AD69,$AJ$8:$AJ$9)) -> 22
A70: 150 | B70: 64 | C70: 56 | D70: 54 | E70: 50 | F70: 47 | G70: 46 | H70: 42 | I70: 38 | J70: 29 | P70: =A70 -> 150 | Q70: 64 | R70: =AVERAGE(C70:G70) -> 50.6 | S70: 42 | T70: 33.5 | X70: 150 | Y70: =HLOOKUP($AJ$8,$B$67:$M$75,4) -> 64 | Z70: =HLOOKUP($AJ$9,$B$67:$M$75,4) -> 64 | AA70: PSI1: | AB70: =LARGE(A68:A75,COUNTIF(A68:A75,">" &$AJ$5)+1) ->  | AE70: PSO1: | AF70: =VLOOKUP(AB70,A68:B75,2) -> 
A71: 200 | B71: 85 | C71: 77 | D71: 72 | E71: 69 | F71: 67 | G71: 65 | H71: 60 | I71: 54 | J71: 50 | K71: 42 | P71: =A71 -> 200 | Q71: 85 | R71: 70 | S71: 59.66666667 | T71: 48.66666667 | U71: =AVERAGE(K71:M71) -> 42 | X71: 200 | Y71: =HLOOKUP($AJ$8,$B$67:$M$75,5) -> 85 | Z71: =HLOOKUP($AJ$9,$B$67:$M$75,5) -> 85 | AA71: PSI2: | AB71: =SMALL(A68:A75,COUNTIF(A68:A75,"<"&$AJ$5)+1) -> 50 | AE71: PSO2: | AF71: =VLOOKUP(AB71,A68:B75,2) -> 22
A72: 250 | B72: 103 | C72: 98 | D72: 96 | E72: 89 | F72: 86 | G72: 85 | H72: 80 | I72: 72 | J72: 66 | K72: 58 | L72: 49 | M72: 38 | P72: =A72 -> 250 | Q72: 103 | R72: 90.8 | S72: 79 | T72: 65.33333333 | U72: 48.33333333 | X72: 250 | Y72: =HLOOKUP($AJ$8,$B$67:$M$75,6) -> 103 | Z72: =HLOOKUP($AJ$9,$B$67:$M$75,6) -> 103
A73: 300 | B73: 126 | C73: 118 | D73: 113 | E73: 109 | F73: 105 | G73: 105 | H73: 98 | I73: 92 | J73: 85 | K73: 77 | L73: 71 | M73: 64 | P73: =A73 -> 300 | Q73: =B73 -> 126 | R73: =AVERAGE(C73:G73) -> 110 | S73: =AVERAGE(G73:I73) -> 98.33333333 | T73: =AVERAGE(I73:K73) -> 84.66666667 | U73: =AVERAGE(K73:M73) -> 70.66666667 | X73: 300 | Y73: =HLOOKUP($AJ$8,$B$67:$M$75,7) -> 126 | Z73: =HLOOKUP($AJ$9,$B$67:$M$75,7) -> 126
A74: 350 | B74: 148 | C74: 138 | D74: 134 | E74: 128 | F74: 127 | G74: 124 | H74: 119 | I74: 111 | J74: 104 | K74: 96 | L74: 85 | M74: 77 | P74: 350 | Q74: 148 | R74: 130.2 | S74: 118 | T74: 103.6666667 | U74: 86 | X74: 350 | Y74: =HLOOKUP($AJ$8,$B$67:$M$75,8) -> 148 | Z74: =HLOOKUP($AJ$9,$B$67:$M$75,8) -> 148
A75: 400 | B75: 166 | C75: 160 | D75: 154 | E75: 152 | F75: 149 | G75: 147 | H75: 138 | I75: 130 | J75: 125 | K75: 119 | L75: 106 | M75: 96 | P75: 400 | Q75: 166 | R75: 152.4 | S75: 138.3333333 | T75: 124.6666667 | U75: =AVERAGE(K75:M75) -> 107 | X75: 400 | Y75: =HLOOKUP($AJ$8,$B$67:$M$75,9) -> 166 | Z75: =HLOOKUP($AJ$9,$B$67:$M$75,9) -> 166

Sheet 1.5_Angle (hidden)
A1: 1.5" Angle Body - Outlet Pressures @ Flow Rate
A3: Type 1 | B3: Outlet Pressures @ Flow Rate, GPM | O3: Type 1 | P3: Inlet vs. Outlet Pressure Over Flow Range | U3: Type 1
A4: Inlet Pressure (psig) | B4: 0 | C4: 50 | D4: 100 | E4: 150 | F4: 175 | G4: 200 | H4: 250 | I4: 300 | J4: 350 | K4: 400 | L4: 450 | M4: 500 | Q4: Static | R4: 50-200 [GPM] | S4: 200-250 [GPM] | W4: =CONCATENATE("Outlet Residual @ " &AH$8& " GPM") -> Outlet Residual @ 0 GPM | X4: =CONCATENATE("Outlet Residual @ " &AH$9& " GPM") -> Outlet Residual @ 0 GPM | AA4: Const. PRI Interpolated @ Var. Flow | AF4: Variables:
A5: 50 | B5: 45 | C5: 36 | D5: 34 | E5: 23 | F5: 22 | G5: 12 | O5: Inlet Pressure (psig) | P5: =A5 -> 50 | Q5: =B5 -> 45 | R5: =AVERAGE(C5:G5) -> 25.4 | S5: =AVERAGE(G5:H5) -> 12 | U5: Inlet Pressure (psig) | V5: =A5 -> 50 | W5: =HLOOKUP($AH$8,$B$4:$M$9,2) -> 45 | X5: =HLOOKUP($AH$9,$B$4:$M$9,2) -> 45 | Y5: PRI1: | Z5: =LARGE(A5:A9,COUNTIF(A5:A9,">" &$AH$6)+1) ->  | AA5: =VLOOKUP(Z5,V5:X9,2) ->  | AB5: =VLOOKUP(Z5,V5:X9,3) ->  | AC5: PRO1: | AD5: =IF(AA5=AB5, AA5, FORECAST($AH$7,AA5:AB5,$AH$8:$AH$9)) ->  | AF5: Static Inlet Pressure | AG5: PSI: | AH5: =Database!$B$2 -> 0
A6: 100 | B6: 82 | C6: 73 | D6: 67 | E6: 63 | F6: 62 | G6: 53 | H6: 42 | I6: 20 | P6: =A6 -> 100 | Q6: =B6 -> 82 | R6: =AVERAGE(C6:G6) -> 63.6 | S6: =AVERAGE(G6:H6) -> 47.5 | V6: =A6 -> 100 | W6: =HLOOKUP($AH$8,$B$4:$M$9,3) -> 82 | X6: =HLOOKUP($AH$9,$B$4:$M$9,3) -> 82 | Y6: PRI2: | Z6: =SMALL(A5:A9,COUNTIF(A5:A9,"<"&$AH$6)+1) -> 50 | AA6: =VLOOKUP(Z6,V5:X9,2) -> 45 | AB6: =VLOOKUP(Z6,V5:X9,3) -> 45 | AC6: PRO2: | AD6: =IF(AA6=AB6, AA6, FORECAST($AH$7,AA6:AB6,$AH$8:$AH$9)) -> 45 | AF6: Residual Inlet Pressure | AG6: PRI: | AH6: =Database!$B$3 -> 0
A7: 150 | B7: 123 | C7: 104 | D7: 103 | E7: 100 | F7: 97 | G7: 95 | H7: 80 | I7: 65 | J7: 42 | P7: =A7 -> 150 | Q7: 123 | R7: 99.8 | S7: 87.5 | V7: 150 | W7: =HLOOKUP($AH$8,$B$4:$M$9,4) -> 123 | X7: =HLOOKUP($AH$9,$B$4:$M$9,4) -> 123 | Y7: PSI1: | Z7: =LARGE(A5:A9,COUNTIF(A5:A9,">" &$AH$5)+1) ->  | AC7: PSO1: | AD7: =VLOOKUP(Z7,A5:B9,2) ->  | AF7: Flow Rate | AG7: Q0: | AH7: =Database!$B$4 -> 0
A8: 200 | B8: 164 | C8: 140 | D8: 135 | E8: 142 | F8: 141 | G8: 130 | H8: 127 | I8: 108 | J8: 90 | K8: 60 | P8: =A8 -> 200 | Q8: 164 | R8: 137.6 | S8: 128.5 | V8: 200 | W8: =HLOOKUP($AH$8,$B$4:$M$9,5) -> 164 | X8: =HLOOKUP($AH$9,$B$4:$M$9,5) -> 164 | Y8: PSI2: | Z8: =SMALL(A5:A9,COUNTIF(A5:A9,"<"&$AH$5)+1) -> 50 | AC8: PSO2: | AD8: =VLOOKUP(Z8,A5:B9,2) -> 45 | AF8: Nearest Flow Rate, 1 | AG8: Q1: | AH8: =LARGE(B4:H4,COUNTIF(B4:H4,">" &$AH$7)+1) -> 0
A9: 210 | B9: 171 | C9: 147 | D9: 144 | E9: 150 | F9: 148 | G9: 139 | H9: 137 | I9: 114 | J9: 96 | K9: 67 | P9: =A9 -> 210 | Q9: 171 | R9: 145.6 | S9: 138 | V9: 210 | W9: =HLOOKUP($AH$8,$B$4:$M$9,6) -> 171 | X9: =HLOOKUP($AH$9,$B$4:$M$9,6) -> 171 | AF9: Nearest Known Flow Rate, 2 | AG9: Q2: | AH9: =SMALL(B4:H4,COUNTIF(B4:H4,"<"&$AH$7)+1) -> 0
A11: Type 2 | B11: Outlet Pressures @ Flow Rate, GPM | O11: Type 2 | P11: Inlet vs. Outlet Pressure Over Flow Range | U11: Type 2
A12: Inlet Pressure (psig) | B12: 0 | C12: 50 | D12: 100 | E12: 150 | F12: 175 | G12: 200 | H12: 250 | I12: 300 | J12: 350 | K12: 400 | L12: 450 | M12: 500 | Q12: Static | R12: 50-200 [GPM] | S12: 200-250 [GPM] | W12: =CONCATENATE("Outlet Residual @ " &AH$8& " GPM") -> Outlet Residual @ 0 GPM | X12: =CONCATENATE("Outlet Residual @ " &AH$9& " GPM") -> Outlet Residual @ 0 GPM | AA12: Const. PRI Interpolated @ Var. Flow | AF12: 1.5" Angle | AG12: Calculated Static Outlet Pressure | AH12: Calculated Residual Outlet Pressure | AI12: Max Flow Rate
A13: 50 | B13: 40 | C13: 30 | D13: 26 | E13: 22 | F13: 15 | G13: 10 | O13: Inlet Pressure (psig) | P13: =A13 -> 50 | Q13: =B13 -> 40 | R13: =AVERAGE(C13:G13) -> 20.6 | S13: =AVERAGE(G13:H13) -> 10 | U13: Inlet Pressure (psig) | V13: =A13 -> 50 | W13: =HLOOKUP($AH$8,$B$12:$H$17,2) -> 40 | X13: =HLOOKUP($AH$9,$B$12:$H$17,2) -> 40 | Y13: PRI1: | Z13: =LARGE(A13:A17,COUNTIF(A13:A17,">" &$AH$6)+1) ->  | AA13: =VLOOKUP(Z13,V13:X17,2) ->  | AB13: =VLOOKUP(Z13,V13:X17,3) ->  | AC13: PRO1: | AD13: =IF(AA13=AB13, AA13, FORECAST($AH$7,AA13:AB13,$AH$8:$AH$9)) ->  | AF13: Type 1 | AG13: =IF(AD7=AD8,AD7,FORECAST(AH5,AD7:AD8,Z7:Z8)) ->  | AH13: =IF(AD5=AD6,AD5,FORECAST($AH$6,AD5:AD6,Z5:Z6)) ->  | AI13: 250
A14: 100 | B14: 74 | C14: 57 | D14: 58 | E14: 52 | F14: 48 | G14: 47 | H14: 33 | I14: 19 | P14: =A14 -> 100 | Q14: =B14 -> 74 | R14: =AVERAGE(C14:G14) -> 52.4 | S14: =AVERAGE(G14:H14) -> 40 | V14: =A14 -> 100 | W14: =HLOOKUP($AH$8,$B$12:$H$17,3) -> 74 | X14: =HLOOKUP($AH$9,$B$12:$H$17,3) -> 74 | Y14: PRI2: | Z14: =SMALL(A13:A17,COUNTIF(A13:A17,"<"&$AH$6)+1) -> 50 | AA14: =VLOOKUP(Z14,V13:X17,2) -> 40 | AB14: =VLOOKUP(Z14,V13:X17,3) -> 40 | AC14: PRO2: | AD14: =IF(AA14=AB14, AA14, FORECAST($AH$7,AA14:AB14,$AH$8:$AH$9)) -> 40 | AF14: Type 2 | AG14: =IF(AD15=AD16,AD15,FORECAST($AH$5,AD15:AD16,Z15:Z16)) ->  | AH14: =IF(Z13=Z14,AD13,FORECAST($AH$6,AD13:AD14,Z13:Z14)) ->  | AI14: 250
A15: 150 | B15: 107 | C15: 87 | D15: 84 | E15: 80 | F15: 78 | G15: 77 | H15: 69 | I15: 55 | J15: 37 | P15: =A15 -> 150 | Q15: 107 | R15: 81.2 | S15: 73 | V15: 150 | W15: =HLOOKUP($AH$8,$B$12:$H$17,4) -> 107 | X15: =HLOOKUP($AH$9,$B$12:$H$17,4) -> 107 | Y15: PSI1: | Z15: =LARGE(A13:A17,COUNTIF(A13:A17,">" &$AH$5)+1) ->  | AC15: PSO1: | AD15: =VLOOKUP(Z15,A13:B17,2) ->  | AF15: Type 3 | AG15: =IF(AD23=AD24,AD23,FORECAST($AH$5,AD23:AD24,Z23:Z24)) ->  | AH15: =IF(Z21=Z22,AD21,FORECAST($AH$6,AD21:AD22,Z21:Z22)) ->  | AI15: 250
A16: 200 | B16: 141 | C16: 121 | D16: 117 | E16: 113 | F16: 111 | G16: 107 | H16: 97 | I16: 91 | J16: 77 | K16: 51 | P16: =A16 -> 200 | Q16: 141 | R16: 113.8 | S16: 102 | V16: 200 | W16: =HLOOKUP($AH$8,$B$12:$H$17,5) -> 141 | X16: =HLOOKUP($AH$9,$B$12:$H$17,5) -> 141 | Y16: PSI2: | Z16: =SMALL(A13:A17,COUNTIF(A13:A17,"<"&$AH$5)+1) -> 50 | AC16: PSO2: | AD16: =VLOOKUP(Z16,A13:B17,2) -> 40 | AF16: Type 4B | AG16: =IF(AD32=AD33,AD32,FORECAST($AH$5,AD32:AD33,Z32:Z33)) ->  | AH16: =IF(Z30=Z31,AD30,FORECAST($AH$6,AD30:AD31,Z30:Z31)) ->  | AI16: 200
A17: 250 | B17: 174 | C17: 153 | D17: 146 | E17: 145 | F17: 140 | G17: 139 | H17: 136 | I17: 113 | J17: 107 | K17: 87 | L17: 68 | P17: =A17 -> 250 | Q17: 174 | R17: 144.6 | S17: 137.5 | V17: 250 | W17: =HLOOKUP($AH$8,$B$12:$H$17,6) -> 174 | X17: =HLOOKUP($AH$9,$B$12:$H$17,6) -> 174 | AF17: Type 4A | AG17: =IF(AD41=AD42,AD42,FORECAST($AH$5,AD41:AD42,Z41:Z42)) ->  | AH17: =IF(Z39=Z40,AD39,FORECAST($AH$6,AD39:AD40,Z39:Z40)) ->  | AI17: 250
AF18: Type 5 | AG18: =IF(AD51=AD52,AD51,FORECAST($AH$5,AD51:AD52,Z51:Z52)) ->  | AH18: =IF(Z49=Z50,AD49,FORECAST($AH$6,AD49:AD50,Z49:Z50)) ->  | AI18: 250
A19: Type 3 | B19: Outlet Pressures @ Flow Rate, GPM | O19: Type 3 | P19: Inlet vs. Outlet Pressure Over Flow Range | U19: Type 3
A20: Inlet Pressure (psig) | B20: 0 | C20: 50 | D20: 100 | E20: 150 | F20: 175 | G20: 200 | H20: 250 | I20: 300 | J20: 350 | K20: 400 | L20: 450 | M20: 500 | Q20: Static | R20: 50-200 [GPM] | S20: 200-250 [GPM] | W20: =CONCATENATE("Outlet Residual @ " &AH$8& " GPM") -> Outlet Residual @ 0 GPM | X20: =CONCATENATE("Outlet Residual @ " &AH$9& " GPM") -> Outlet Residual @ 0 GPM | AA20: Const. PRI Interpolated @ Var. Flow
A21: 50 | B21: 33 | C21: 26 | D21: 24 | E21: 18 | F21: 12 | G21: 10 | O21: Inlet Pressure (psig) | P21: =A21 -> 50 | Q21: =B21 -> 33 | R21: =AVERAGE(C21:G21) -> 18 | S21: =AVERAGE(G21:H21) -> 10 | U21: Inlet Pressure (psig) | V21: =A21 -> 50 | W21: =HLOOKUP($AH$8,$B$20:$H$26,2) -> 33 | X21: =HLOOKUP($AH$9,$B$20:$H$26,2) -> 33 | Y21: PRI1: | Z21: =LARGE(A21:A26,COUNTIF(A21:A26,">" &$AH$6)+1) ->  | AA21: =VLOOKUP(Z21,V21:X26,2) ->  | AB21: =VLOOKUP(Z21,V21:X26,3) ->  | AC21: PRO1: | AD21: =IF(AA21=AB21, AA21, FORECAST($AH$7,AA21:AB21,$AH$8:$AH$9)) -> 
A22: 100 | B22: 64 | C22: 50 | D22: 50 | E22: 46 | F22: 45 | G22: 38 | H22: 27 | I22: 17 | P22: =A22 -> 100 | Q22: =B22 -> 64 | R22: =AVERAGE(C22:G22) -> 45.8 | S22: =AVERAGE(G22:H22) -> 32.5 | V22: =A22 -> 100 | W22: =HLOOKUP($AH$8,$B$20:$H$26,3) -> 64 | X22: =HLOOKUP($AH$9,$B$20:$H$26,3) -> 64 | Y22: PRI2: | Z22: =SMALL(A21:A26,COUNTIF(A21:A26,"<"&$AH$6)+1) -> 50 | AA22: =VLOOKUP(Z22,V21:X26,2) -> 33 | AB22: =VLOOKUP(Z22,V21:X26,3) -> 33 | AC22: PRO2: | AD22: =IF(AA22=AB22, AA22, FORECAST($AH$7,AA22:AB22,$AH$8:$AH$9)) -> 33
A23: 150 | B23: 94 | C23: 85 | D23: 75 | E23: 72 | F23: 70 | G23: 68 | H23: 59 | I23: 46 | J23: 32 | P23: =A23 -> 150 | Q23: 94 | R23: 74 | S23: 63.5 | V23: 150 | W23: =HLOOKUP($AH$8,$B$20:$H$26,4) -> 94 | X23: =HLOOKUP($AH$9,$B$20:$H$26,4) -> 94 | Y23: PSI1: | Z23: =LARGE(A21:A26,COUNTIF(A21:A26,">" &$AH$5)+1) ->  | AC23: PSO1: | AD23: =VLOOKUP(Z23,A21:B26,2) -> 
A24: 200 | B24: 126 | C24: 103 | D24: 95 | E24: 99 | F24: 97 | G24: 93 | H24: 88 | I24: 76 | J24: 61 | K24: 45 | P24: =A24 -> 200 | Q24: 126 | R24: 97.4 | S24: 90.5 | V24: 200 | W24: =HLOOKUP($AH$8,$B$20:$H$26,5) -> 126 | X24: =HLOOKUP($AH$9,$B$20:$H$26,5) -> 126 | Y24: PSI2: | Z24: =SMALL(A21:A26,COUNTIF(A21:A26,"<"&$AH$5)+1) -> 50 | AC24: PSO2: | AD24: =VLOOKUP(Z24,A21:B26,2) -> 33
A25: 250 | B25: 160 | C25: 132 | D25: 118 | E25: 121 | F25: 124 | G25: 120 | H25: 114 | I25: 108 | J25: 98 | K25: 76 | L25: 55 | P25: =A25 -> 250 | Q25: 160 | R25: 123 | S25: 117 | V25: 250 | W25: =HLOOKUP($AH$8,$B$20:$H$26,6) -> 160 | X25: =HLOOKUP($AH$9,$B$20:$H$26,6) -> 160
A26: 260 | B26: 174 | C26: 139 | D26: 130 | E26: 122 | F26: 124 | G26: 123 | H26: 125 | P26: =A26 -> 260 | Q26: =B26 -> 174 | R26: =AVERAGE(C26:G26) -> 127.6 | S26: =AVERAGE(G26:H26) -> 124 | V26: =A26 -> 260 | W26: =HLOOKUP($AH$8,$B$20:$H$26,7) -> 174 | X26: =HLOOKUP($AH$9,$B$20:$H$26,7) -> 174
A28: Type 4B | B28: Outlet Pressures @ Flow Rate, GPM | O28: Type 4B | P28: Inlet vs. Outlet Pressure Over Flow Range | U28: Type 4A
A29: Inlet Pressure (psig) | B29: 0 | C29: 50 | D29: 100 | E29: 150 | F29: 175 | G29: 200 | H29: 250 | I29: 300 | J29: 350 | K29: 400 | L29: 450 | M29: 500 | Q29: Static | R29: 50-200 [GPM] | W29: =CONCATENATE("Outlet Residual @ " &$AG$30& " GPM") -> Outlet Residual @ 0 GPM | X29: =CONCATENATE("Outlet Residual @ " &$AG$31& " GPM") -> Outlet Residual @ 0 GPM | AA29: Const. PRI Interpolated @ Var. Flow | AF29: Type 4B (200 GPM Max.) | AG29: Flow Rate
A30: 50 | B30: 28 | C30: 18 | D30: 22 | E30: 12 | O30: Inlet Pressure (psig) | P30: =A30 -> 50 | Q30: =B30 -> 28 | R30: =AVERAGE(C30:G30) -> 17.33333333 | U30: Inlet Pressure (psig) | V30: =A30 -> 50 | W30: =HLOOKUP($AG$30,$B$29:$H$36,2) -> 28 | X30: =HLOOKUP($AG$31,$B$29:$H$36,2) -> 28 | Y30: PRI1: | Z30: =LARGE(A30:A35,COUNTIF(A30:A35,">" &$AH$6)+1) ->  | AA30: =VLOOKUP(Z30,V30:X35,2) ->  | AB30: =VLOOKUP(Z30,V30:X35,3) ->  | AC30: PRO1: | AD30: =IF(AA30=AB30, AA30, FORECAST($AH$7,AA30:AB30,$AG$30:$AG$31)) ->  | AF30: Mod Rate, 1 | AG30: =LARGE(B29:G29,COUNTIF(B29:G29,">" &$AH$7)+1) -> 0
A31: 100 | B31: 60 | C31: 39 | D31: 39 | E31: 37 | F31: 33 | G31: 33 | H31: 21 | P31: =A31 -> 100 | Q31: =B31 -> 60 | R31: =AVERAGE(C31:G31) -> 36.2 | V31: =A31 -> 100 | W31: =HLOOKUP($AG$30,$B$29:$H$36,3) -> 60 | X31: =HLOOKUP($AG$31,$B$29:$H$36,3) -> 60 | Y31: PRI2: | Z31: =SMALL(A30:A35,COUNTIF(A30:A35,"<"&$AH$6)+1) -> 50 | AA31: =VLOOKUP(Z31,V30:X35,2) -> 28 | AB31: =VLOOKUP(Z31,V30:X35,3) -> 28 | AC31: PRO2: | AD31: =IF(AA31=AB31, AA31, FORECAST($AH$7,AA31:AB31,$AG$30:$AG$31)) -> 28 | AF31: Mod Rate, 2 | AG31: =SMALL(B29:G29,COUNTIF(B29:G29,"<"&$AH$7)+1) -> 0
A32: 150 | B32: 88 | C32: 62 | D32: 60 | E32: 59 | F32: 58 | G32: 59 | H32: 47 | I32: 36 | J32: 24 | P32: =A32 -> 150 | Q32: 88 | R32: 59.6 | V32: 150 | W32: =HLOOKUP($AG$30,$B$29:$H$36,4) -> 88 | X32: =HLOOKUP($AG$31,$B$29:$H$36,4) -> 88 | Y32: PSI1: | Z32: =LARGE(A30:A35,COUNTIF(A30:A35,">" &$AH$5)+1) ->  | AC32: PSO1: | AD32: =VLOOKUP(Z32,A30:B35,2) -> 
A33: 200 | B33: 116 | C33: 86 | D33: 84 | E33: 84 | F33: 88 | G33: 80 | H33: 71 | I33: 61 | J33: 48 | K33: 33 | L33: 10 | P33: =A33 -> 200 | Q33: 116 | R33: 84.4 | V33: 200 | W33: =HLOOKUP($AG$30,$B$29:$H$36,5) -> 116 | X33: =HLOOKUP($AG$31,$B$29:$H$36,5) -> 116 | Y33: PSI2: | Z33: =SMALL(A30:A35,COUNTIF(A30:A35,"<"&$AH$5)+1) -> 50 | AC33: PSO2: | AD33: =VLOOKUP(Z33,A30:B35,2) -> 28
A34: 250 | B34: 145 | C34: 112 | D34: 111 | E34: 106 | F34: 109 | G34: 106 | H34: 98 | I34: 88 | J34: 73 | K34: 60 | L34: 60 | P34: =A34 -> 250 | Q34: 145 | R34: 108.8 | V34: 250 | W34: =HLOOKUP($AG$30,$B$29:$H$36,6) -> 145 | X34: =HLOOKUP($AG$31,$B$29:$H$36,6) -> 145
A35: 275 | B35: 172 | C35: 142 | D35: 120 | E35: 111 | F35: 118 | G35: 124 | H35: 120 | P35: =A35 -> 275 | Q35: =B35 -> 172 | R35: =AVERAGE(C35:G35) -> 123 | V35: 275 | W35: =HLOOKUP($AG$30,$B$29:$H$36,7) -> 172 | X35: =HLOOKUP($AG$31,$B$29:$H$36,7) -> 172
A37: Type 4A | B37: Outlet Pressures @ Flow Rate, GPM | O37: Type 4A | P37: Inlet vs. Outlet Pressure Over Flow Range | U37: Type 4B
A38: Inlet Pressure (psig) | B38: 0 | C38: 50 | D38: 100 | E38: 150 | F38: 175 | G38: 200 | H38: 250 | I38: 300 | J38: 350 | K38: 400 | L38: 450 | M38: 500 | Q38: Static | R38: 50-200 [GPM] | S38: 200-250 [GPM] | W38: =CONCATENATE("Outlet Residual @ " &$AH$8& " GPM") -> Outlet Residual @ 0 GPM | X38: =CONCATENATE("Outlet Residual @ " &$AH$9& " GPM") -> Outlet Residual @ 0 GPM | AA38: Const. PRI Interpolated @ Var. Flow
A39: 50 | B39: 28 | C39: 18 | D39: 22 | E39: 12 | O39: Inlet Pressure (psig) | P39: =A39 -> 50 | Q39: =B39 -> 28 | R39: =AVERAGE(C39:G39) -> 17.33333333 | S39: =AVERAGE(F39:G39) ->  | U39: Inlet Pressure (psig) | V39: =A39 -> 50 | W39: =HLOOKUP($AH$8,$B$38:$H$44,2) -> 28 | X39: =HLOOKUP($AH$9,$B$38:$H$44,2) -> 28 | Y39: PRI1: | Z39: =LARGE(A39:A45,COUNTIF(A39:A45,">" &$AH$6)+1) ->  | AA39: =VLOOKUP(Z39,V39:X45,2) ->  | AB39: =VLOOKUP(Z39,V39:X45,3) ->  | AC39: PRO1: | AD39: =IF(AA39=AB39, AA39, FORECAST($AH$7,AA39:AB39,$AH$8:$AH$9)) -> 
A40: 100 | B40: 60 | C40: 39 | D40: 39 | E40: 37 | F40: 33 | G40: 33 | H40: 21 | P40: =A40 -> 100 | Q40: =B40 -> 60 | R40: =AVERAGE(C40:G40) -> 36.2 | S40: =AVERAGE(F40:G40) -> 33 | V40: =A40 -> 100 | W40: =HLOOKUP($AH$8,$B$38:$H$44,3) -> 60 | X40: =HLOOKUP($AH$9,$B$38:$H$44,3) -> 60 | Y40: PRI2: | Z40: =SMALL(A39:A45,COUNTIF(A39:A45,"<"&$AH$6)+1) -> 50 | AA40: =VLOOKUP(Z40,V39:X45,2) -> 28 | AB40: =VLOOKUP(Z40,V39:X45,3) -> 28 | AC40: PRO2: | AD40: =IF(AA40=AB40, AA40, FORECAST($AH$7,AA40:AB40,$AH$8:$AH$9)) -> 28
A41: 150 | B41: 88 | C41: 62 | D41: 60 | E41: 59 | F41: 58 | G41: 59 | H41: 47 | I41: 36 | J41: 24 | P41: =A41 -> 150 | Q41: 88 | R41: 59.6 | S41: 58.5 | V41: 150 | W41: =HLOOKUP($AH$8,$B$38:$H$44,4) -> 88 | X41: =HLOOKUP($AH$9,$B$38:$H$44,4) -> 88 | Y41: PSI1: | Z41: =LARGE(A39:A45,COUNTIF(A39:A45,">" &$AH$5)+1) ->  | AC41: PSO1: | AD41: =VLOOKUP(Z41,A39:B45,2) -> 
A42: 200 | B42: 116 | C42: 86 | D42: 84 | E42: 84 | F42: 88 | G42: 80 | H42: 71 | I42: 61 | J42: 48 | K42: 33 | L42: 10 | P42: =A42 -> 200 | Q42: 116 | R42: 84.4 | S42: 84 | V42: 200 | W42: =HLOOKUP($AH$8,$B$38:$H$44,5) -> 116 | X42: =HLOOKUP($AH$9,$B$38:$H$44,5) -> 116 | Y42: PSI2: | Z42: =SMALL(A39:A45,COUNTIF(A39:A45,"<"&$AH$5)+1) -> 50 | AC42: PSO2: | AD42: =VLOOKUP(Z42,A39:B45,2) -> 28
A43: 250 | B43: 145 | C43: 112 | D43: 111 | E43: 106 | F43: 109 | G43: 106 | H43: 98 | I43: 88 | J43: 73 | K43: 60 | L43: 60 | P43: =A43 -> 250 | Q43: 145 | R43: 108.8 | S43: 107.5 | V43: 250 | W43: =HLOOKUP($AH$8,$B$38:$H$44,6) -> 145 | X43: =HLOOKUP($AH$9,$B$38:$H$44,6) -> 145
A44: 260 | B44: =B$43+(B$45-B$43)*(($A$44-$A$43)/($A$45-$A$43)) -> 155.8 | C44: =C$43+(C$45-C$43)*(($A$44-$A$43)/($A$45-$A$43)) -> 124 | D44: =D$43+(D$45-D$43)*(($A$44-$A$43)/($A$45-$A$43)) -> 114.6 | E44: 108 | F44: 112.6 | G44: 113.2 | H44: 106.8 | I44: 52.8 | J44: 43.8 | K44: 36 | L44: 36 | P44: =A44 -> 260 | Q44: 155.8 | R44: 114.48 | S44: 112.9 | V44: 260 | W44: =HLOOKUP($AH$8,$B$38:$H$44,7) -> 155.8 | X44: =HLOOKUP($AH$9,$B$38:$H$44,7) -> 155.8
A45: 275 | B45: 172 | C45: 142 | D45: 120 | E45: 111 | F45: 118 | G45: 124 | H45: 120 | P45: =A45 -> 275 | Q45: 172 | R45: 123 | S45: 121
A47: Type 5 | B47: Outlet Pressures @ Flow Rate, GPM | O47: Type 5 | P47: Inlet vs. Outlet Pressure Over Flow Range | U47: Type 5
A48: Inlet Pressure (psig) | B48: 0 | C48: 50 | D48: 100 | E48: 150 | F48: 175 | G48: 200 | H48: 250 | I48: 300 | J48: 350 | K48: 400 | L48: 450 | M48: 500 | Q48: Static | R48: 50-200 [GPM] | S48: 200-250 [GPM] | W48: =CONCATENATE("Outlet Residual @ " &AH$8& " GPM") -> Outlet Residual @ 0 GPM | X48: =CONCATENATE("Outlet Residual @ " &AH$9& " GPM") -> Outlet Residual @ 0 GPM | AA48: Const. PRI Interpolated @ Var. Flow
A49: 50 | B49: 24 | C49: 18 | D49: 15 | E49: 1 | O49: Inlet Pressure (psig) | P49: =A49 -> 50 | Q49: =B49 -> 24 | R49: =AVERAGE(C49:G49) -> 11.33333333 | S49: =AVERAGE(G49:H49) ->  | U49: Inlet Pressure (psig) | V49: =A49 -> 50 | W49: =HLOOKUP($AH$8,$B$48:$H$56,2) -> 24 | X49: =HLOOKUP($AH$9,$B$48:$H$56,2) -> 24 | Y49: PRI1: | Z49: =LARGE(A49:A54,COUNTIF(A49:A54,">" &$AH$6)+1) ->  | AA49: =VLOOKUP(Z49,V49:X54,2) ->  | AB49: =VLOOKUP(Z49,V49:X54,3) ->  | AC49: PRO1: | AD49: =IF(AA49=AB49, AA49, FORECAST($AH$7,AA49:AB49,$AH$8:$AH$9)) -> 
A50: 100 | B50: 47 | C50: 38 | D50: 30 | E50: 27 | F50: 10 | P50: =A50 -> 100 | Q50: =B50 -> 47 | R50: =AVERAGE(C50:G50) -> 26.25 | S50: =AVERAGE(G50:H50) ->  | V50: =A50 -> 100 | W50: =HLOOKUP($AH$8,$B$48:$H$56,3) -> 47 | X50: =HLOOKUP($AH$9,$B$48:$H$56,3) -> 47 | Y50: PRI2: | Z50: =SMALL(A49:A54,COUNTIF(A49:A54,"<"&$AH$6)+1) -> 50 | AA50: =VLOOKUP(Z50,V49:X54,2) -> 24 | AB50: =VLOOKUP(Z50,V49:X54,3) -> 24 | AC50: PRO2: | AD50: =IF(AA50=AB50, AA50, FORECAST($AH$7,AA50:AB50,$AH$8:$AH$9)) -> 24
A51: 150 | B51: 74 | C51: 59 | D51: 42 | E51: 46 | F51: 44 | G51: 40 | P51: =A51 -> 150 | Q51: 74 | R51: 46.2 | S51: 40 | V51: 150 | W51: =HLOOKUP($AH$8,$B$48:$H$56,4) -> 74 | X51: =HLOOKUP($AH$9,$B$48:$H$56,4) -> 74 | Y51: PSI1: | Z51: =LARGE(A49:A54,COUNTIF(A49:A54,">" &$AH$5)+1) ->  | AC51: PSO1: | AD51: =VLOOKUP(Z51,A49:B54,2) -> 
A52: 200 | B52: 92 | C52: 79 | D52: 63 | E52: 56 | F52: 64 | G52: 62 | H52: 50 | P52: =A52 -> 200 | Q52: 92 | R52: 64.8 | S52: 56 | V52: 200 | W52: =HLOOKUP($AH$8,$B$48:$H$56,5) -> 92 | X52: =HLOOKUP($AH$9,$B$48:$H$56,5) -> 92 | Y52: PSI2: | Z52: =SMALL(A49:A54,COUNTIF(A49:A54,"<"&$AH$5)+1) -> 50 | AC52: PSO2: | AD52: =VLOOKUP(Z52,A49:B54,2) -> 24
A53: 250 | B53: 120 | C53: 103 | D53: 84 | E53: 76 | F53: 74 | G53: 80 | H53: 74 | I53: 63 | P53: =A53 -> 250 | Q53: 120 | R53: 83.4 | S53: 77 | V53: 250 | W53: =HLOOKUP($AH$8,$B$48:$H$56,6) -> 120 | X53: =HLOOKUP($AH$9,$B$48:$H$56,6) -> 120
A54: 300 | B54: 140 | C54: 125 | D54: 109 | E54: 93 | F54: 93 | G54: 95 | H54: 96 | I54: 96 | J54: 85 | P54: =A54 -> 300 | Q54: =B54 -> 140 | R54: =AVERAGE(C54:G54) -> 103 | S54: =AVERAGE(G54:H54) -> 95.5 | V54: 300 | W54: =HLOOKUP($AH$8,$B$48:$H$56,7) -> 140 | X54: =HLOOKUP($AH$9,$B$48:$H$56,7) -> 140

Sheet Flow_Charts
